Workbook

Sheet Read me
A1: HOW TO USE THIS DOCUMENT
A2: Welcome to the model used to determine the levy rates for transit buses as part of the 2024 Off-site Levies Bylaw Review. Note: This model is in DRAFT form for discussion purposes, using the latest information and assumptions available.
A4: Last Updated: | B4: 2023-07-19
A6: Transit Bus Levy Tabs 1 - 7
A7: Tab Number | B7: Title | C7: Description
A8: Tab 1 | B8: Assumptions | C8: This tab entails the assumptions and steps to create the financial model. It also provides some details to clarify questions around the assumptions.
A9: Tab 2 | B9: Rate Summary | C9: This tab provides a high level summary of the steps that are taken to determine the transit bus levy rate calculation, and provides a look at the proposed levy rate.
A10: Tab 3 | B10: Unlevied Land | C10: This tab describes the remaining unlevied land that is included in the model.
A11: Tab 4 | B11: Infrastructure | C11: This tab provides details on the determination of the number of additional transit buses needed to support new growth in approved greenfield Area Structure Plans.
A12: Tab 5 | B12: Forecast Data | C12: This tab provides the detailed forecast data used to determine the infrastructure need.
A13: Tab 6 | B13: Benefit Allocation | C13: This tab provides the benefit rate allocation to the forecast population in unlevied lands within approved greenfield Area Structure Plans.
A14: Tab 7 | B14: Financial Model | C14: This tab provides the financial modelling and a detailed calculation of the proposed levy rate.
A15: Tab 8 | B15: Version History | C15: Draft version dated Wednesday, July 19, 2023

Sheet Tab 1 - Assumptions
A1: Transit Buses - Assumptions
A2: Summary | B2: Frequently Asked Questions
A3: The City will use this financial model to calculate a transit bus off-site levy rate per hectare that incorporates investment income, capital cost escalations, and the timing of expenditures and developer contributions through the model period. The levy rate calculated ensures that the off-site levy balance at the end of the model period is zero (i.e., revenues have matched expenditures). It also incorporates, if necessary, any interest costs incurred from the use of alternative funding sources required to deliver infrastructure in a timely manner.
A6: Assumptions
A7: Escalation rate | B7: The escalation factor of 3.58% is a five-year smoothed average, determined using Non-Residential Building Construction Price Index (CPI) for Calgary.
A8: Discount rate | B8: The discount rate of 4.29% is based on the asset mix of the investments held on The City's capital deposits, and the Long-term Capital Market assumptions that The City uses in projecting returns from investment portfolios.
A9: Gross developable land | B9: Gross developable lands are calculated starting with the gross land area and deducting non-developable lands.
A10: Unlevied land | B10: Unlevied land includes all gross developable lands outside the off-site levy Established Area boundary that do not have executed development agreements, as of the end of 2022. This was 14,211.1 hectares at the end of 2022, and is forecast to be 13,921.1 hectares at the end of 2023.
A11: Land absorption | B11: • All remaining unlevied hectares will sign development agreements within the forecast period (ending 2076). • The land absorption from 2023 to 2027 is based on the fall 2022 forecast by Corporate Economics. • Remaining unlevied hectares in current and future Area Structure Plans are assumed to follow a decreasing trend over the forecast period, on the expectation of higher densities supporting the same number of people.
A12: Benefit allocation | B12: Benefit allocation considers the land that will benefit from infrastructure being levied for and relates to the forecast residents in that land.
A13: Payment schedule | B13: This financial model incorporates the current levy payment schedule, where 100% of transit bus levies are paid in year three after the development agreement is signed.
A14: Investment income on future value of cash flows | B14: Investment income is earned on the off-site levy beginning account balance, plus collections and minus spending through the year. Investment income on collections and spending is multiplied by a cashflow timing factor of 0.5 to reflect the fact that the timing of collection and spending varies throughout the year. If the balance of the off-site levy goes negative then interest is charged on the balance of the shortfall.
A15: Expenditures | B15: • Purchases of additional buses will depend on corresponding Council approvals for increased operating budgets to pay for bus drivers, increase maintenance capacity, etc. • For this model it is assumed that purchases will include 20 buses, as and when sufficient funds are available in the off-site levy balance.

Sheet Tab 2 - Rate Summary
A1: Transit Buses - Rate Summary
A2: Proposed 2024 Levy Rate | F2: Figure 1. Off-site levy rate calculation
B4: The levy rate calculation is being adjusted from the simple formula of Costs x Benefit / Land to the model described in Figure 1 to the right, and in the text below. This financial model uses the following inputs: • Total unlevied land, and annual land absorption. • The off-site levy payment schedule. • Total capital costs of infrastructure being levied for, with the benefit allocations to determine total costs being levied for. • Annual expenditures. • An escalation factor to calculate the future value of project costs. • A discount factor to calculate the discounted value of project costs, future revenue from developer contributions, and annual investment income. The levy rate is then calculated using Excel's Goal Seek function to find the levy rate that balances all expenditures and revenues over the course of the model to result in an off-site levy balance of $0.
F22: Step 5 is iterative. | G22: Step 6 and 7 calculate automatically once annual spending is set. | I22: Step 8 must be iterated if any variables are changed. | J22: Steps 9 to 11 calculate automatically once the levy rate has been set.
B23: Step 1 | C23: Step 2 | D23: Step 3 | E23: Step 4 | F23: Step 5 | G23: Step 6 | H23: Step 7 | I23: Step 8 | J23: Step 9 | K23: Step 10 | L23: Step 11
B24: Unlevied land absorption | C24: Total capital costs | D24: Benefit allocation | E24: Leviable capital costs | F24: Annual spending | G24: Future value | H24: Discounted value | I24: Levy rate | J24: Developer contributions | K24: Investment income | L24: Ending balance
B25: Details on unlevied lands can be found in Tab 3. Remaining unlevied lands are assumed to be fully absorbed within the model period, in the slowly decreasing trend shown on Tab 7. | C25: Identify the total capital costs for projects that benefit unlevied lands. Details can be found in Tab 4. | D25: Determine the benefiting areas and benefit allocations that apply to the infrastructure identified in Step 2. Forecast details can be found in Tab 5, with benefit summary information in Tab 6. | E25: Leviable capital cost: • Apply benefit rates to the capital costs of each project to determine the developer share of costs. | F25: Set expenditures for transit buses for each year in the model period. The assumption used is that, when the off-site levy balance has sufficient funds, 20 buses will be purchased the following year. | G25: Calculate the future value of capital costs over the model period. Details for this step can be found in Tab 7. | H25: Calculate the discounted value of the capital costs over the model period. Details for this step can be found in Tab 7. | I25: Use Excel's Goal Seek function to calculate the transit bus off-site levy rate which ensures that developer contributions plus investment income are equal to the future value of capital cost/cash outflows by end of the model period. | J25: The levy rate is multiplied by the hectares that are forecast to sign development agreements each year to calculate the yearly contributions from the developers. | K25: The annual investment income is calculated by multiplying the balance of spending and contributions each year by the investment rate of return. | L25: The annual ending account balance is calculated as the sum of spending, the starting balance, developer contributions, and investment income.
B26: A | C26: B | D26: C | E26: D | F26: E | G26: F | H26: G | I26: H | J26: I | K26: J | L26: K
B27: ='Tab 7 - Financial Model'!E29 -> 9069 | C27: ='Tab 4 - Infrastructure'!G27 -> 173484000 | D27: ='Tab 6 - Benefit Calculation'!B15 -> 1 | E27: ='Tab 7 - Financial Model'!E17 -> 173484000 | F27: See Tab 7, row 17. | G27: ='Tab 7 - Financial Model'!I21 -> 385775324.4 | H27: ='Tab 7 - Financial Model'!I22 -> 150241840.7 | I27: ='Tab 7 - Financial Model'!C3 -> 19597.03877 | J27: ='Tab 7 - Financial Model'!I30 -> 351620250.8 | K27: ='Tab 7 - Financial Model'!I36 -> 34155073.69 | L27: ='Tab 7 - Financial Model'!AS38 -> 0
B28: Hectares | C28: Dollars | E28: Dollars | G28: Dollars | H28: Dollars | I28: Dollars | J28: Dollars | K28: Dollars | L28: Dollars

Sheet Tab 3 - Unlevied Land
A1: Transit Buses - Unlevied Land
A2: This tab provides background on different benefiting areas: the Established Area, unlevied land, and land that has already been levied. | Q2: Figure 2. Off-Site levy Established Area boundary, and unlevied lands as of the end of 2022
A5: Figure 2 to the right illustrates The City's Established Area and Greenfield Area; unlevied lands in current Area Structure Plans (ASPs), and land in future ASPs. The Established Area boundary was identified in 2016 Off-site Levies Bylaw and contains lands that are fully developed, or have executed development agreement to allow future development. The purpose of the boundary is to determine benefiting areas in support of levy rate calculations (established or greenfield) for different parts of the city. Unlevied lands, shown in green, includes all gross developable lands in approved ASP's outside the off-site levy Established Area boundary that do not have an executed development agreement, as of the end of 2022. The off-site levy rate calculation excludes the forecast land absorption for 2023. Future ASP's are shown in orange. These lands are not currently being considered for the transit bus off-site levy. The formula for infrastructure needs will be reviewed when new ASP's are approved. Land shown in yellow includes both greenfield lands that have already been levied, and non-developable land. Non-developable land is excluded from the determination of the number of hectares that have been levied or are unlevied. This includes, for example: • The Transportation Utility Corridor (TUC), or road right-of-way for provincial expressways. • Environmental Reserve (slopes with a grade greater than 15%, natural water bodies, areas impacted by a 1:100 year flood). • Landfills. • Cemeteries.

Sheet Tab 4 - Infrastructure
A1: Transit Buses - Infrastructure Being Levied For
A2: This tab provides the details on costs that will be eligible for levy funding in the 2024 Off-Site Levies Bylaw. Costs are current to Q2 2023.
A4: Last Updated: | B4: 2023-07-17
A6: The infrastructure need (number of transit buses) is based on a citywide population-to-fleet ratio, which measures the total population in Calgary to the number of transit buses in service. This ratio changes year-to-year as the population grows annually, while buses are purchased less frequently. An average has been taken from three years to calculate the ratio of the total population for each transit bus in service. Transit service in the greenfield will include a combination of primary transit service (seven MAX routes and several other Bus Rapid Transit (BRT) routes), and community routes. The additional fleet needed is calculated as the forecast population in approved greenfield Area Structure Plans divided by the citywide population-to-fleet ratio.
B14: Level of Service and Infrastructure Need Calculation
D15: Actuals
C16: Off-Site Levy Calculation | D16: 2016 | E16: 2019 | F16: 2022
B17: # Buses (40' only) | C17: =AVERAGE(D17:F17) -> 739.3333333 | D17: 732 | E17: 744 | F17: 742
B18: # People | C18: =AVERAGE(D18:F18) -> 1303238.333 | D18: 1235171 | E18: 1285344 | F18: 1389200
B19: # People per 1 bus | C19: =C18/C17 -> 1762.72092 | D19: =D18/D17 -> 1687.392077 | E19: 1727.612903 | F19: 1872.237197
B20: Forecast population in unlevied ASP lands | C20: ='Tab 5 - Forecast Data'!X6 -> 416991.4586
B21: Infrastructure need / # buses | C21: =ROUND(C20/C19,0) -> 237
E23: Lookup | F23: Calc | G23: Calc | H23: Lookup | I23: Calc
A24: Infrastructure Type | B24: Greenfield/ Shared Benefit | C24: Cost per Bus | D24: # of People per 1 Bus | E24: Forecast Population | F24: # of New Greenfield Buses Needed | G24: Total Cost | H24: Benefit | I24: Leviable Cost
A25: Transit Buses | B25: Greenfield | C25: 732000 | D25: =C19 -> 1762.72092 | E25: =C20 -> 416991.4586 | F25: =ROUND(E25/D25,0) -> 237 | G25: =F25*C25 -> 173484000 | H25: ='Tab 6 - Benefit Calculation'!B15 -> 1 | I25: =H25*G25 -> 173484000
C27: Total | G27: =SUM(G24:G25) -> 173484000 | I27: =SUM(I24:I25) -> 173484000
E28: ='Tab 5 - Forecast Data'!X6 -> 416991.4586

Sheet Tab 5 - Forecast Data
A1: Transportation - Detailed Forecast Data
A2: This tab provides the detailed forecast data used to calculate benefit allocations. Please note that the total unlevied hectares in this table reflects the total as of the end of 2022; 14,211 hectares. In Tab 7, the denominator of 13,921 hectares reflects a further subtraction of 290 hectares per the Corporate Economics forecast for 2023.
A6: Detailed Forecast Data | G6: Totals | H6: =SUM(H9:H1409) -> 13146.75131 | I6: =SUM(I9:I1409) -> 14211.10312 | M6: =SUM(M9:M1409) -> 2318515.875 | N6: 1068287.733 | O6: 531215.3876 | P6: 719012.7544 | Q6: 1410380.222 | R6: 1093651.928 | S6: 238427.8607 | T6: 78300.43374 | U6: 2161939.661 | V6: 769643.2483 | W6: 797313.1881 | X6: 416991.4586 | Y6: 76748.2226
A8: Transportation Zone | B8: Municipality | C8: MDP Zone | D8: Community Name | E8: OSL Location | F8: Approved Growth | G8: Total Developable Ha (levied and unlevied) | H8: Levied Ha | I8: Unlevied Ha | J8: % Levied | K8: % Unlevied | L8: % Approved ASPs | M8: 2076 Total Population | N8: Population: Established | O8: Population: Levied | P8: Population: Unlevied | Q8: 2076 Total Jobs | R8: Jobs: Established | S8: Jobs: Levied | T8: Jobs: Unlevied | U8: Population + Jobs: Established | V8: Population + Jobs: Levied | W8: Population + Jobs: Unlevied | X8: Population: Unlevied Current ASPs | Y8: Jobs: Unlevied Current ASPs
A9: 101 | B9: Calgary | C9: Developed | D9: DOWNTOWN WEST END | E9: Established | F9: EA | G9: 15.29827667 | H9: 0 | I9: 0 | J9: =IF(H9>0,H9/G9,0) -> 0 | K9: =IF(E9="Greenfield",1-J9,0) -> 0 | L9: =IF(F9="Current ASP",IF(ISERROR(VLOOKUP(A9,#REF!,3,FALSE)),1,1-VLOOKUP(A9,#REF!,3,FALSE)),0) -> 0 | M9: 0 | N9: =IF($E9="Established",$M9,0) -> 0 | O9: =IF($E9="Greenfield",$M9*J9,0) -> 0 | P9: =IF($E9="Greenfield",$M9*K9,0) -> 0 | Q9: 688.5986415 | R9: =IF($E9="Established",$Q9,0) -> 688.5986415 | S9: =IF($E9="Greenfield",$Q9*J9,0) -> 0 | T9: =IF($E9="Greenfield",$Q9*K9,0) -> 0 | U9: =N9+R9 -> 688.5986415 | V9: =O9+S9 -> 0 | W9: =P9+T9 -> 0 | X9: =L9*M9*K9 -> 0 | Y9: =Q9*L9*K9 -> 0
A10: 102 | B10: Calgary | C10: Developed | D10: DOWNTOWN WEST END | E10: Established | F10: EA | G10: 19.52943393 | H10: 0 | I10: 0 | J10: =IF(H10>0,H10/G10,0) -> 0 | K10: =IF(E10="Greenfield",1-J10,0) -> 0 | L10: =IF(F10="Current ASP",IF(ISERROR(VLOOKUP(A10,#REF!,3,FALSE)),1,1-VLOOKUP(A10,#REF!,3,FALSE)),0) -> 0 | M10: 3116.910544 | N10: =IF($E10="Established",$M10,0) -> 3116.910544 | O10: =IF($E10="Greenfield",$M10*J10,0) -> 0 | P10: =IF($E10="Greenfield",$M10*K10,0) -> 0 | Q10: 3005.912149 | R10: =IF($E10="Established",$Q10,0) -> 3005.912149 | S10: =IF($E10="Greenfield",$Q10*J10,0) -> 0 | T10: =IF($E10="Greenfield",$Q10*K10,0) -> 0 | U10: =N10+R10 -> 6122.822693 | V10: =O10+S10 -> 0 | W10: =P10+T10 -> 0 | X10: =L10*M10*K10 -> 0 | Y10: =Q10*L10*K10 -> 0
A11: 103 | B11: Calgary | C11: Developed | D11: DOWNTOWN COMMERCIAL CORE | E11: Established | F11: EA | G11: 6.011544608 | H11: 0 | I11: 0 | J11: 0 | K11: 0 | L11: =IF(F11="Current ASP",IF(ISERROR(VLOOKUP(A11,#REF!,3,FALSE)),1,1-VLOOKUP(A11,#REF!,3,FALSE)),0) -> 0 | M11: 1230.542453 | N11: 1230.542453 | O11: 0 | P11: 0 | Q11: 1832.700012 | R11: 1832.700012 | S11: 0 | T11: 0 | U11: 3063.242466 | V11: 0 | W11: 0 | X11: 0 | Y11: 0
A12: 104 | B12: Calgary | C12: Developed | D12: DOWNTOWN COMMERCIAL CORE | E12: Established | F12: EA | G12: 7.429439467 | H12: 0 | I12: 0 | J12: 0 | K12: 0 | L12: =IF(F12="Current ASP",IF(ISERROR(VLOOKUP(A12,#REF!,3,FALSE)),1,1-VLOOKUP(A12,#REF!,3,FALSE)),0) -> 0 | M12: 2335.646291 | N12: 2335.646291 | O12: 0 | P12: 0 | Q12: 6211.869515 | R12: 6211.869515 | S12: 0 | T12: 0 | U12: 8547.515806 | V12: 0 | W12: 0 | X12: 0 | Y12: 0
A13: 105 | B13: Calgary | C13: Developed | D13: DOWNTOWN COMMERCIAL CORE | E13: Established | F13: EA | G13: 11.01873385 | H13: 0 | I13: 0 | J13: 0 | K13: 0 | L13: =IF(F13="Current ASP",IF(ISERROR(VLOOKUP(A13,#REF!,3,FALSE)),1,1-VLOOKUP(A13,#REF!,3,FALSE)),0) -> 0 | M13: 2766.906327 | N13: 2766.906327 | O13: 0 | P13: 0 | Q13: 4202.842167 | R13: 4202.842167 | S13: 0 | T13: 0 | U13: 6969.748494 | V13: 0 | W13: 0 | X13: 0 | Y13: 0
A14: 106 | B14: Calgary | C14: Developed | D14: EAU CLAIRE | E14: Established | F14: EA | G14: 3.681138138 | H14: 0 | I14: 0 | J14: 0 | K14: 0 | L14: =IF(F14="Current ASP",IF(ISERROR(VLOOKUP(A14,#REF!,3,FALSE)),1,1-VLOOKUP(A14,#REF!,3,FALSE)),0) -> 0 | M14: 0 | N14: 0 | O14: 0 | P14: 0 | Q14: 1.901272502 | R14: 1.901272502 | S14: 0 | T14: 0 | U14: 1.901272502 | V14: 0 | W14: 0 | X14: 0 | Y14: 0
A15: 107 | B15: Calgary | C15: Developed | D15: DOWNTOWN COMMERCIAL CORE | E15: Established | F15: EA | G15: 4.923603659 | H15: 0 | I15: 0 | J15: 0 | K15: 0 | L15: =IF(F15="Current ASP",IF(ISERROR(VLOOKUP(A15,#REF!,3,FALSE)),1,1-VLOOKUP(A15,#REF!,3,FALSE)),0) -> 0 | M15: 1086.038418 | N15: 1086.038418 | O15: 0 | P15: 0 | Q15: 2747.929022 | R15: 2747.929022 | S15: 0 | T15: 0 | U15: 3833.96744 | V15: 0 | W15: 0 | X15: 0 | Y15: 0
A16: 108 | B16: Calgary | C16: Developed | D16: DOWNTOWN COMMERCIAL CORE | E16: Established | F16: EA | G16: 7.244439007 | H16: 0 | I16: 0 | J16: 0 | K16: 0 | L16: =IF(F16="Current ASP",IF(ISERROR(VLOOKUP(A16,#REF!,3,FALSE)),1,1-VLOOKUP(A16,#REF!,3,FALSE)),0) -> 0 | M16: 777.5130643 | N16: 777.5130643 | O16: 0 | P16: 0 | Q16: 10701.30425 | R16: 10701.30425 | S16: 0 | T16: 0 | U16: 11478.81731 | V16: 0 | W16: 0 | X16: 0 | Y16: 0
A17: 109 | B17: Calgary | C17: Developed | D17: DOWNTOWN COMMERCIAL CORE | E17: Established | F17: EA | G17: 7.374150005 | H17: 0 | I17: 0 | J17: 0 | K17: 0 | L17: =IF(F17="Current ASP",IF(ISERROR(VLOOKUP(A17,#REF!,3,FALSE)),1,1-VLOOKUP(A17,#REF!,3,FALSE)),0) -> 0 | M17: 339.7596226 | N17: 339.7596226 | O17: 0 | P17: 0 | Q17: 7546.993058 | R17: 7546.993058 | S17: 0 | T17: 0 | U17: 7886.75268 | V17: 0 | W17: 0 | X17: 0 | Y17: 0
A18: 110 | B18: Calgary | C18: Developed | D18: DOWNTOWN COMMERCIAL CORE | E18: Established | F18: EA | G18: 6.077272074 | H18: 0 | I18: 0 | J18: 0 | K18: 0 | L18: =IF(F18="Current ASP",IF(ISERROR(VLOOKUP(A18,#REF!,3,FALSE)),1,1-VLOOKUP(A18,#REF!,3,FALSE)),0) -> 0 | M18: 0 | N18: 0 | O18: 0 | P18: 0 | Q18: 5400.38142 | R18: 5400.38142 | S18: 0 | T18: 0 | U18: 5400.38142 | V18: 0 | W18: 0 | X18: 0 | Y18: 0
A19: 111 | B19: Calgary | C19: Developed | D19: DOWNTOWN COMMERCIAL CORE | E19: Established | F19: EA | G19: 2.969858651 | H19: 0 | I19: 0 | J19: 0 | K19: 0 | L19: =IF(F19="Current ASP",IF(ISERROR(VLOOKUP(A19,#REF!,3,FALSE)),1,1-VLOOKUP(A19,#REF!,3,FALSE)),0) -> 0 | M19: 0 | N19: 0 | O19: 0 | P19: 0 | Q19: 1160.25398 | R19: 1160.25398 | S19: 0 | T19: 0 | U19: 1160.25398 | V19: 0 | W19: 0 | X19: 0 | Y19: 0
A20: 112 | B20: Calgary | C20: Developed | D20: DOWNTOWN COMMERCIAL CORE | E20: Established | F20: EA | G20: 3.475249506 | H20: 0 | I20: 0 | J20: 0 | K20: 0 | L20: =IF(F20="Current ASP",IF(ISERROR(VLOOKUP(A20,#REF!,3,FALSE)),1,1-VLOOKUP(A20,#REF!,3,FALSE)),0) -> 0 | M20: 0 | N20: 0 | O20: 0 | P20: 0 | Q20: 2144.986069 | R20: 2144.986069 | S20: 0 | T20: 0 | U20: 2144.986069 | V20: 0 | W20: 0 | X20: 0 | Y20: 0
A21: 113 | B21: Calgary | C21: Developed | D21: DOWNTOWN COMMERCIAL CORE | E21: Established | F21: EA | G21: 3.234855667 | H21: 0 | I21: 0 | J21: 0 | K21: 0 | L21: =IF(F21="Current ASP",IF(ISERROR(VLOOKUP(A21,#REF!,3,FALSE)),1,1-VLOOKUP(A21,#REF!,3,FALSE)),0) -> 0 | M21: 474.8007114 | N21: 474.8007114 | O21: 0 | P21: 0 | Q21: 3083.283873 | R21: 3083.283873 | S21: 0 | T21: 0 | U21: 3558.084584 | V21: 0 | W21: 0 | X21: 0 | Y21: 0
A22: 114 | B22: Calgary | C22: Developed | D22: EAU CLAIRE | E22: Established | F22: EA | G22: 17.33421896 | H22: 0 | I22: 0 | J22: 0 | K22: 0 | L22: =IF(F22="Current ASP",IF(ISERROR(VLOOKUP(A22,#REF!,3,FALSE)),1,1-VLOOKUP(A22,#REF!,3,FALSE)),0) -> 0 | M22: 2736.848588 | N22: 2736.848588 | O22: 0 | P22: 0 | Q22: 3742.718941 | R22: 3742.718941 | S22: 0 | T22: 0 | U22: 6479.567529 | V22: 0 | W22: 0 | X22: 0 | Y22: 0
A23: 115 | B23: Calgary | C23: Developed | D23: CHINATOWN | E23: Established | F23: EA | G23: 0.2422581313 | H23: 0 | I23: 0 | J23: 0 | K23: 0 | L23: =IF(F23="Current ASP",IF(ISERROR(VLOOKUP(A23,#REF!,3,FALSE)),1,1-VLOOKUP(A23,#REF!,3,FALSE)),0) -> 0 | M23: 2153.265505 | N23: 2153.265505 | O23: 0 | P23: 0 | Q23: 2344.496767 | R23: 2344.496767 | S23: 0 | T23: 0 | U23: 4497.762272 | V23: 0 | W23: 0 | X23: 0 | Y23: 0
A24: 116 | B24: Calgary | C24: Developed | D24: EAU CLAIRE | E24: Established | F24: EA | G24: 1.574191374 | H24: 0 | I24: 0 | J24: 0 | K24: 0 | L24: =IF(F24="Current ASP",IF(ISERROR(VLOOKUP(A24,#REF!,3,FALSE)),1,1-VLOOKUP(A24,#REF!,3,FALSE)),0) -> 0 | M24: 103.7332841 | N24: 103.7332841 | O24: 0 | P24: 0 | Q24: 5151.544687 | R24: 5151.544687 | S24: 0 | T24: 0 | U24: 5255.277971 | V24: 0 | W24: 0 | X24: 0 | Y24: 0
A25: 117 | B25: Calgary | C25: Developed | D25: DOWNTOWN COMMERCIAL CORE | E25: Established | F25: EA | G25: 5.498702365 | H25: 0 | I25: 0 | J25: 0 | K25: 0 | L25: =IF(F25="Current ASP",IF(ISERROR(VLOOKUP(A25,#REF!,3,FALSE)),1,1-VLOOKUP(A25,#REF!,3,FALSE)),0) -> 0 | M25: 0 | N25: 0 | O25: 0 | P25: 0 | Q25: 6309.765464 | R25: 6309.765464 | S25: 0 | T25: 0 | U25: 6309.765464 | V25: 0 | W25: 0 | X25: 0 | Y25: 0
A26: 118 | B26: Calgary | C26: Developed | D26: DOWNTOWN COMMERCIAL CORE | E26: Established | F26: EA | G26: 5.328051727 | H26: 0 | I26: 0 | J26: 0 | K26: 0 | L26: =IF(F26="Current ASP",IF(ISERROR(VLOOKUP(A26,#REF!,3,FALSE)),1,1-VLOOKUP(A26,#REF!,3,FALSE)),0) -> 0 | M26: 0 | N26: 0 | O26: 0 | P26: 0 | Q26: 8925.148916 | R26: 8925.148916 | S26: 0 | T26: 0 | U26: 8925.148916 | V26: 0 | W26: 0 | X26: 0 | Y26: 0
A27: 119 | B27: Calgary | C27: Developed | D27: DOWNTOWN COMMERCIAL CORE | E27: Established | F27: EA | G27: 4.292146218 | H27: 0 | I27: 0 | J27: 0 | K27: 0 | L27: =IF(F27="Current ASP",IF(ISERROR(VLOOKUP(A27,#REF!,3,FALSE)),1,1-VLOOKUP(A27,#REF!,3,FALSE)),0) -> 0 | M27: 0 | N27: 0 | O27: 0 | P27: 0 | Q27: 11703.04606 | R27: 11703.04606 | S27: 0 | T27: 0 | U27: 11703.04606 | V27: 0 | W27: 0 | X27: 0 | Y27: 0
A28: 120 | B28: Calgary | C28: Developed | D28: DOWNTOWN COMMERCIAL CORE | E28: Established | F28: EA | G28: 7.352165211 | H28: 0 | I28: 0 | J28: 0 | K28: 0 | L28: =IF(F28="Current ASP",IF(ISERROR(VLOOKUP(A28,#REF!,3,FALSE)),1,1-VLOOKUP(A28,#REF!,3,FALSE)),0) -> 0 | M28: 76.45952339 | N28: 76.45952339 | O28: 0 | P28: 0 | Q28: 6122.922369 | R28: 6122.922369 | S28: 0 | T28: 0 | U28: 6199.381892 | V28: 0 | W28: 0 | X28: 0 | Y28: 0
A29: 121 | B29: Calgary | C29: Developed | D29: DOWNTOWN COMMERCIAL CORE | E29: Established | F29: EA | G29: 7.455250977 | H29: 0 | I29: 0 | J29: 0 | K29: 0 | L29: =IF(F29="Current ASP",IF(ISERROR(VLOOKUP(A29,#REF!,3,FALSE)),1,1-VLOOKUP(A29,#REF!,3,FALSE)),0) -> 0 | M29: 0 | N29: 0 | O29: 0 | P29: 0 | Q29: 13526.83821 | R29: 13526.83821 | S29: 0 | T29: 0 | U29: 13526.83821 | V29: 0 | W29: 0 | X29: 0 | Y29: 0
A30: 122 | B30: Calgary | C30: Developed | D30: DOWNTOWN COMMERCIAL CORE | E30: Established | F30: EA | G30: 7.281821485 | H30: 0 | I30: 0 | J30: 0 | K30: 0 | L30: =IF(F30="Current ASP",IF(ISERROR(VLOOKUP(A30,#REF!,3,FALSE)),1,1-VLOOKUP(A30,#REF!,3,FALSE)),0) -> 0 | M30: 0 | N30: 0 | O30: 0 | P30: 0 | Q30: 13823.66391 | R30: 13823.66391 | S30: 0 | T30: 0 | U30: 13823.66391 | V30: 0 | W30: 0 | X30: 0 | Y30: 0
A31: 123 | B31: Calgary | C31: Developed | D31: DOWNTOWN COMMERCIAL CORE | E31: Established | F31: EA | G31: 5.281529665 | H31: 0 | I31: 0 | J31: 0 | K31: 0 | L31: =IF(F31="Current ASP",IF(ISERROR(VLOOKUP(A31,#REF!,3,FALSE)),1,1-VLOOKUP(A31,#REF!,3,FALSE)),0) -> 0 | M31: 0 | N31: 0 | O31: 0 | P31: 0 | Q31: 8055.55332 | R31: 8055.55332 | S31: 0 | T31: 0 | U31: 8055.55332 | V31: 0 | W31: 0 | X31: 0 | Y31: 0
A32: 124 | B32: Calgary | C32: Developed | D32: CHINATOWN | E32: Established | F32: EA | G32: 3.727993555 | H32: 0 | I32: 0 | J32: 0 | K32: 0 | L32: =IF(F32="Current ASP",IF(ISERROR(VLOOKUP(A32,#REF!,3,FALSE)),1,1-VLOOKUP(A32,#REF!,3,FALSE)),0) -> 0 | M32: 493.5320525 | N32: 493.5320525 | O32: 0 | P32: 0 | Q32: 2878.421849 | R32: 2878.421849 | S32: 0 | T32: 0 | U32: 3371.953901 | V32: 0 | W32: 0 | X32: 0 | Y32: 0
A33: 125 | B33: Calgary | C33: Developed | D33: DOWNTOWN COMMERCIAL CORE | E33: Established | F33: EA | G33: 11.23660177 | H33: 0 | I33: 0 | J33: 0 | K33: 0 | L33: =IF(F33="Current ASP",IF(ISERROR(VLOOKUP(A33,#REF!,3,FALSE)),1,1-VLOOKUP(A33,#REF!,3,FALSE)),0) -> 0 | M33: 937.8541033 | N33: 937.8541033 | O33: 0 | P33: 0 | Q33: 10223.422 | R33: 10223.422 | S33: 0 | T33: 0 | U33: 11161.2761 | V33: 0 | W33: 0 | X33: 0 | Y33: 0
A34: 126 | B34: Calgary | C34: Developed | D34: DOWNTOWN COMMERCIAL CORE | E34: Established | F34: EA | G34: 0.1996847783 | H34: 0 | I34: 0 | J34: 0 | K34: 0 | L34: =IF(F34="Current ASP",IF(ISERROR(VLOOKUP(A34,#REF!,3,FALSE)),1,1-VLOOKUP(A34,#REF!,3,FALSE)),0) -> 0 | M34: 271.63392 | N34: 271.63392 | O34: 0 | P34: 0 | Q34: 20445.65224 | R34: 20445.65224 | S34: 0 | T34: 0 | U34: 20717.28616 | V34: 0 | W34: 0 | X34: 0 | Y34: 0
A35: 127 | B35: Calgary | C35: Developed | D35: DOWNTOWN EAST VILLAGE | E35: Established | F35: EA | G35: 1.931043658 | H35: 0 | I35: 0 | J35: 0 | K35: 0 | L35: =IF(F35="Current ASP",IF(ISERROR(VLOOKUP(A35,#REF!,3,FALSE)),1,1-VLOOKUP(A35,#REF!,3,FALSE)),0) -> 0 | M35: 2228.937764 | N35: 2228.937764 | O35: 0 | P35: 0 | Q35: 529.7510554 | R35: 529.7510554 | S35: 0 | T35: 0 | U35: 2758.68882 | V35: 0 | W35: 0 | X35: 0 | Y35: 0
A36: 128 | B36: Calgary | C36: Developed | D36: DOWNTOWN EAST VILLAGE | E36: Established | F36: EA | G36: 0.6596401729 | H36: 0 | I36: 0 | J36: 0 | K36: 0 | L36: =IF(F36="Current ASP",IF(ISERROR(VLOOKUP(A36,#REF!,3,FALSE)),1,1-VLOOKUP(A36,#REF!,3,FALSE)),0) -> 0 | M36: 3448.879439 | N36: 3448.879439 | O36: 0 | P36: 0 | Q36: 6869.688726 | R36: 6869.688726 | S36: 0 | T36: 0 | U36: 10318.56816 | V36: 0 | W36: 0 | X36: 0 | Y36: 0
A37: 129 | B37: Calgary | C37: Developed | D37: DOWNTOWN EAST VILLAGE | E37: Established | F37: EA | G37: 5.317033013 | H37: 0 | I37: 0 | J37: 0 | K37: 0 | L37: =IF(F37="Current ASP",IF(ISERROR(VLOOKUP(A37,#REF!,3,FALSE)),1,1-VLOOKUP(A37,#REF!,3,FALSE)),0) -> 0 | M37: 0 | N37: 0 | O37: 0 | P37: 0 | Q37: 28.05630933 | R37: 28.05630933 | S37: 0 | T37: 0 | U37: 28.05630933 | V37: 0 | W37: 0 | X37: 0 | Y37: 0
A38: 130 | B38: Calgary | C38: Developed | D38: DOWNTOWN COMMERCIAL CORE | E38: Established | F38: EA | G38: 4.955145523 | H38: 0 | I38: 0 | J38: 0 | K38: 0 | L38: =IF(F38="Current ASP",IF(ISERROR(VLOOKUP(A38,#REF!,3,FALSE)),1,1-VLOOKUP(A38,#REF!,3,FALSE)),0) -> 0 | M38: 651.8831074 | N38: 651.8831074 | O38: 0 | P38: 0 | Q38: 4216.334789 | R38: 4216.334789 | S38: 0 | T38: 0 | U38: 4868.217897 | V38: 0 | W38: 0 | X38: 0 | Y38: 0
A39: 131 | B39: Calgary | C39: Developed | D39: DOWNTOWN EAST VILLAGE | E39: Established | F39: EA | G39: 0 | H39: 0 | I39: 0 | J39: 0 | K39: 0 | L39: =IF(F39="Current ASP",IF(ISERROR(VLOOKUP(A39,#REF!,3,FALSE)),1,1-VLOOKUP(A39,#REF!,3,FALSE)),0) -> 0 | M39: 984.9069815 | N39: 984.9069815 | O39: 0 | P39: 0 | Q39: 7508.741769 | R39: 7508.741769 | S39: 0 | T39: 0 | U39: 8493.64875 | V39: 0 | W39: 0 | X39: 0 | Y39: 0
A40: 201 | B40: Calgary | C40: Developed | D40: BELTLINE | E40: Established | F40: EA | G40: 11.60804335 | H40: 0 | I40: 0 | J40: 0 | K40: 0 | L40: =IF(F40="Current ASP",IF(ISERROR(VLOOKUP(A40,#REF!,3,FALSE)),1,1-VLOOKUP(A40,#REF!,3,FALSE)),0) -> 0 | M40: 2255.07281 | N40: 2255.07281 | O40: 0 | P40: 0 | Q40: 4062.666982 | R40: 4062.666982 | S40: 0 | T40: 0 | U40: 6317.739791 | V40: 0 | W40: 0 | X40: 0 | Y40: 0
A41: 202 | B41: Calgary | C41: Developed | D41: BELTLINE | E41: Established | F41: EA | G41: 19.42903472 | H41: 0 | I41: 0 | J41: 0 | K41: 0 | L41: =IF(F41="Current ASP",IF(ISERROR(VLOOKUP(A41,#REF!,3,FALSE)),1,1-VLOOKUP(A41,#REF!,3,FALSE)),0) -> 0 | M41: 3851.90681 | N41: 3851.90681 | O41: 0 | P41: 0 | Q41: 1506.952254 | R41: 1506.952254 | S41: 0 | T41: 0 | U41: 5358.859065 | V41: 0 | W41: 0 | X41: 0 | Y41: 0
A42: 203 | B42: Calgary | C42: Developed | D42: BELTLINE | E42: Established | F42: EA | G42: 24.44760294 | H42: 0 | I42: 0 | J42: 0 | K42: 0 | L42: =IF(F42="Current ASP",IF(ISERROR(VLOOKUP(A42,#REF!,3,FALSE)),1,1-VLOOKUP(A42,#REF!,3,FALSE)),0) -> 0 | M42: 3470.517891 | N42: 3470.517891 | O42: 0 | P42: 0 | Q42: 1421.462344 | R42: 1421.462344 | S42: 0 | T42: 0 | U42: 4891.980235 | V42: 0 | W42: 0 | X42: 0 | Y42: 0
A43: 204 | B43: Calgary | C43: Developed | D43: BELTLINE | E43: Established | F43: EA | G43: 14.61391863 | H43: 0 | I43: 0 | J43: 0 | K43: 0 | L43: =IF(F43="Current ASP",IF(ISERROR(VLOOKUP(A43,#REF!,3,FALSE)),1,1-VLOOKUP(A43,#REF!,3,FALSE)),0) -> 0 | M43: 3194.768203 | N43: 3194.768203 | O43: 0 | P43: 0 | Q43: 6037.589283 | R43: 6037.589283 | S43: 0 | T43: 0 | U43: 9232.357485 | V43: 0 | W43: 0 | X43: 0 | Y43: 0
A44: 205 | B44: Calgary | C44: Developed | D44: BELTLINE | E44: Established | F44: EA | G44: 14.59979953 | H44: 0 | I44: 0 | J44: 0 | K44: 0 | L44: =IF(F44="Current ASP",IF(ISERROR(VLOOKUP(A44,#REF!,3,FALSE)),1,1-VLOOKUP(A44,#REF!,3,FALSE)),0) -> 0 | M44: 1392.864729 | N44: 1392.864729 | O44: 0 | P44: 0 | Q44: 5942.236048 | R44: 5942.236048 | S44: 0 | T44: 0 | U44: 7335.100777 | V44: 0 | W44: 0 | X44: 0 | Y44: 0
A45: 206 | B45: Calgary | C45: Developed | D45: BELTLINE | E45: Established | F45: EA | G45: 23.0934772 | H45: 0 | I45: 0 | J45: 0 | K45: 0 | L45: =IF(F45="Current ASP",IF(ISERROR(VLOOKUP(A45,#REF!,3,FALSE)),1,1-VLOOKUP(A45,#REF!,3,FALSE)),0) -> 0 | M45: 4271.236293 | N45: 4271.236293 | O45: 0 | P45: 0 | Q45: 2612.610901 | R45: 2612.610901 | S45: 0 | T45: 0 | U45: 6883.847195 | V45: 0 | W45: 0 | X45: 0 | Y45: 0
A46: 207 | B46: Calgary | C46: Developed | D46: BELTLINE | E46: Established | F46: EA | G46: 22.03561048 | H46: 0 | I46: 0 | J46: 0 | K46: 0 | L46: =IF(F46="Current ASP",IF(ISERROR(VLOOKUP(A46,#REF!,3,FALSE)),1,1-VLOOKUP(A46,#REF!,3,FALSE)),0) -> 0 | M46: 3767.439201 | N46: 3767.439201 | O46: 0 | P46: 0 | Q46: 3003.436782 | R46: 3003.436782 | S46: 0 | T46: 0 | U46: 6770.875983 | V46: 0 | W46: 0 | X46: 0 | Y46: 0
A47: 208 | B47: Calgary | C47: Developed | D47: BELTLINE | E47: Established | F47: EA | G47: 13.1289368 | H47: 0 | I47: 0 | J47: 0 | K47: 0 | L47: =IF(F47="Current ASP",IF(ISERROR(VLOOKUP(A47,#REF!,3,FALSE)),1,1-VLOOKUP(A47,#REF!,3,FALSE)),0) -> 0 | M47: 2073.863804 | N47: 2073.863804 | O47: 0 | P47: 0 | Q47: 14818.96977 | R47: 14818.96977 | S47: 0 | T47: 0 | U47: 16892.83358 | V47: 0 | W47: 0 | X47: 0 | Y47: 0
A48: 209 | B48: Calgary | C48: Developed | D48: BELTLINE | E48: Established | F48: EA | G48: 0.5812354207 | H48: 0 | I48: 0 | J48: 0 | K48: 0 | L48: =IF(F48="Current ASP",IF(ISERROR(VLOOKUP(A48,#REF!,3,FALSE)),1,1-VLOOKUP(A48,#REF!,3,FALSE)),0) -> 0 | M48: 2656.151984 | N48: 2656.151984 | O48: 0 | P48: 0 | Q48: 6048.766119 | R48: 6048.766119 | S48: 0 | T48: 0 | U48: 8704.918103 | V48: 0 | W48: 0 | X48: 0 | Y48: 0
A49: 210 | B49: Calgary | C49: Developed | D49: BELTLINE | E49: Established | F49: EA | G49: 1.115179697 | H49: 0 | I49: 0 | J49: 0 | K49: 0 | L49: =IF(F49="Current ASP",IF(ISERROR(VLOOKUP(A49,#REF!,3,FALSE)),1,1-VLOOKUP(A49,#REF!,3,FALSE)),0) -> 0 | M49: 4585.855223 | N49: 4585.855223 | O49: 0 | P49: 0 | Q49: 5962.700519 | R49: 5962.700519 | S49: 0 | T49: 0 | U49: 10548.55574 | V49: 0 | W49: 0 | X49: 0 | Y49: 0
A50: 211 | B50: Calgary | C50: Developed | D50: BELTLINE | E50: Established | F50: EA | G50: 6.379299513 | H50: 0 | I50: 0 | J50: 0 | K50: 0 | L50: =IF(F50="Current ASP",IF(ISERROR(VLOOKUP(A50,#REF!,3,FALSE)),1,1-VLOOKUP(A50,#REF!,3,FALSE)),0) -> 0 | M50: 0 | N50: 0 | O50: 0 | P50: 0 | Q50: 6735.909757 | R50: 6735.909757 | S50: 0 | T50: 0 | U50: 6735.909757 | V50: 0 | W50: 0 | X50: 0 | Y50: 0
A51: 212 | B51: Calgary | C51: Developed | D51: BELTLINE | E51: Established | F51: EA | G51: 1.027497301e-06 | H51: 0 | I51: 0 | J51: 0 | K51: 0 | L51: =IF(F51="Current ASP",IF(ISERROR(VLOOKUP(A51,#REF!,3,FALSE)),1,1-VLOOKUP(A51,#REF!,3,FALSE)),0) -> 0 | M51: 0 | N51: 0 | O51: 0 | P51: 0 | Q51: 2104.66042 | R51: 2104.66042 | S51: 0 | T51: 0 | U51: 2104.66042 | V51: 0 | W51: 0 | X51: 0 | Y51: 0
A52: 213 | B52: Calgary | C52: Developed | D52: BELTLINE | E52: Established | F52: EA | G52: 0 | H52: 0 | I52: 0 | J52: 0 | K52: 0 | L52: =IF(F52="Current ASP",IF(ISERROR(VLOOKUP(A52,#REF!,3,FALSE)),1,1-VLOOKUP(A52,#REF!,3,FALSE)),0) -> 0 | M52: 1443.912129 | N52: 1443.912129 | O52: 0 | P52: 0 | Q52: 4696.642588 | R52: 4696.642588 | S52: 0 | T52: 0 | U52: 6140.554717 | V52: 0 | W52: 0 | X52: 0 | Y52: 0
A53: 301 | B53: Calgary | C53: Developed | D53: INGLEWOOD | E53: Established | F53: EA | G53: 11.29228462 | H53: 0 | I53: 0 | J53: 0 | K53: 0 | L53: =IF(F53="Current ASP",IF(ISERROR(VLOOKUP(A53,#REF!,3,FALSE)),1,1-VLOOKUP(A53,#REF!,3,FALSE)),0) -> 0 | M53: 215.1935055 | N53: 215.1935055 | O53: 0 | P53: 0 | Q53: 1815.566198 | R53: 1815.566198 | S53: 0 | T53: 0 | U53: 2030.759703 | V53: 0 | W53: 0 | X53: 0 | Y53: 0
A54: 302 | B54: Calgary | C54: Developed | D54: INGLEWOOD | E54: Established | F54: EA | G54: 9.119567949 | H54: 0 | I54: 0 | J54: 0 | K54: 0 | L54: =IF(F54="Current ASP",IF(ISERROR(VLOOKUP(A54,#REF!,3,FALSE)),1,1-VLOOKUP(A54,#REF!,3,FALSE)),0) -> 0 | M54: 145.4862894 | N54: 145.4862894 | O54: 0 | P54: 0 | Q54: 1468.418095 | R54: 1468.418095 | S54: 0 | T54: 0 | U54: 1613.904384 | V54: 0 | W54: 0 | X54: 0 | Y54: 0
A55: 303 | B55: Calgary | C55: Developed | D55: INGLEWOOD | E55: Established | F55: EA | G55: 5.000451612 | H55: 0 | I55: 0 | J55: 0 | K55: 0 | L55: =IF(F55="Current ASP",IF(ISERROR(VLOOKUP(A55,#REF!,3,FALSE)),1,1-VLOOKUP(A55,#REF!,3,FALSE)),0) -> 0 | M55: 614.2164174 | N55: 614.2164174 | O55: 0 | P55: 0 | Q55: 2487.609079 | R55: 2487.609079 | S55: 0 | T55: 0 | U55: 3101.825496 | V55: 0 | W55: 0 | X55: 0 | Y55: 0
A56: 304 | B56: Calgary | C56: Developed | D56: INGLEWOOD | E56: Established | F56: EA | G56: 3.692696726 | H56: 0 | I56: 0 | J56: 0 | K56: 0 | L56: =IF(F56="Current ASP",IF(ISERROR(VLOOKUP(A56,#REF!,3,FALSE)),1,1-VLOOKUP(A56,#REF!,3,FALSE)),0) -> 0 | M56: 789.0056352 | N56: 789.0056352 | O56: 0 | P56: 0 | Q56: 530.2819639 | R56: 530.2819639 | S56: 0 | T56: 0 | U56: 1319.287599 | V56: 0 | W56: 0 | X56: 0 | Y56: 0
A57: 305 | B57: Calgary | C57: Developed | D57: INGLEWOOD | E57: Established | F57: EA | G57: 2.08993155 | H57: 0 | I57: 0 | J57: 0 | K57: 0 | L57: =IF(F57="Current ASP",IF(ISERROR(VLOOKUP(A57,#REF!,3,FALSE)),1,1-VLOOKUP(A57,#REF!,3,FALSE)),0) -> 0 | M57: 1190.263454 | N57: 1190.263454 | O57: 0 | P57: 0 | Q57: 417.6321759 | R57: 417.6321759 | S57: 0 | T57: 0 | U57: 1607.89563 | V57: 0 | W57: 0 | X57: 0 | Y57: 0
A58: 306 | B58: Calgary | C58: Developed | D58: INGLEWOOD | E58: Established | F58: EA | G58: 3.892571668 | H58: 0 | I58: 0 | J58: 0 | K58: 0 | L58: =IF(F58="Current ASP",IF(ISERROR(VLOOKUP(A58,#REF!,3,FALSE)),1,1-VLOOKUP(A58,#REF!,3,FALSE)),0) -> 0 | M58: 781.878573 | N58: 781.878573 | O58: 0 | P58: 0 | Q58: 1089.856457 | R58: 1089.856457 | S58: 0 | T58: 0 | U58: 1871.73503 | V58: 0 | W58: 0 | X58: 0 | Y58: 0
A59: 307 | B59: Calgary | C59: Developed | D59: INGLEWOOD | E59: Established | F59: EA | G59: 5.094888068 | H59: 0 | I59: 0 | J59: 0 | K59: 0 | L59: =IF(F59="Current ASP",IF(ISERROR(VLOOKUP(A59,#REF!,3,FALSE)),1,1-VLOOKUP(A59,#REF!,3,FALSE)),0) -> 0 | M59: 940.2771827 | N59: 940.2771827 | O59: 0 | P59: 0 | Q59: 960.213148 | R59: 960.213148 | S59: 0 | T59: 0 | U59: 1900.490331 | V59: 0 | W59: 0 | X59: 0 | Y59: 0
A60: 308 | B60: Calgary | C60: Developed | D60: INGLEWOOD | E60: Established | F60: EA | G60: 19.33451336 | H60: 0 | I60: 0 | J60: 0 | K60: 0 | L60: =IF(F60="Current ASP",IF(ISERROR(VLOOKUP(A60,#REF!,3,FALSE)),1,1-VLOOKUP(A60,#REF!,3,FALSE)),0) -> 0 | M60: 1.90007947 | N60: 1.90007947 | O60: 0 | P60: 0 | Q60: 92.00814881 | R60: 92.00814881 | S60: 0 | T60: 0 | U60: 93.90822828 | V60: 0 | W60: 0 | X60: 0 | Y60: 0
A61: 309 | B61: Calgary | C61: Developed | D61: DOVER | E61: Established | F61: EA | G61: 22.36817288 | H61: 0 | I61: 0 | J61: 0 | K61: 0 | L61: =IF(F61="Current ASP",IF(ISERROR(VLOOKUP(A61,#REF!,3,FALSE)),1,1-VLOOKUP(A61,#REF!,3,FALSE)),0) -> 0 | M61: 0 | N61: 0 | O61: 0 | P61: 0 | Q61: 72.66003707 | R61: 72.66003707 | S61: 0 | T61: 0 | U61: 72.66003707 | V61: 0 | W61: 0 | X61: 0 | Y61: 0
A62: 310 | B62: Calgary | C62: Developed | D62: ALYTH/BONNYBROOK | E62: Established | F62: EA | G62: 27.90646234 | H62: 0 | I62: 0 | J62: 0 | K62: 0 | L62: =IF(F62="Current ASP",IF(ISERROR(VLOOKUP(A62,#REF!,3,FALSE)),1,1-VLOOKUP(A62,#REF!,3,FALSE)),0) -> 0 | M62: 0 | N62: 0 | O62: 0 | P62: 0 | Q62: 2016.638313 | R62: 2016.638313 | S62: 0 | T62: 0 | U62: 2016.638313 | V62: 0 | W62: 0 | X62: 0 | Y62: 0
A63: 311 | B63: Calgary | C63: Developed | D63: ALYTH/BONNYBROOK | E63: Established | F63: EA | G63: 62.11221351 | H63: 0 | I63: 0 | J63: 0 | K63: 0 | L63: =IF(F63="Current ASP",IF(ISERROR(VLOOKUP(A63,#REF!,3,FALSE)),1,1-VLOOKUP(A63,#REF!,3,FALSE)),0) -> 0 | M63: 0 | N63: 0 | O63: 0 | P63: 0 | Q63: 199.2766107 | R63: 199.2766107 | S63: 0 | T63: 0 | U63: 199.2766107 | V63: 0 | W63: 0 | X63: 0 | Y63: 0
A64: 312 | B64: Calgary | C64: Developed | D64: INGLEWOOD | E64: Established | F64: EA | G64: 20.58683806 | H64: 0 | I64: 0 | J64: 0 | K64: 0 | L64: =IF(F64="Current ASP",IF(ISERROR(VLOOKUP(A64,#REF!,3,FALSE)),1,1-VLOOKUP(A64,#REF!,3,FALSE)),0) -> 0 | M64: 1290.806295 | N64: 1290.806295 | O64: 0 | P64: 0 | Q64: 324.3420563 | R64: 324.3420563 | S64: 0 | T64: 0 | U64: 1615.148351 | V64: 0 | W64: 0 | X64: 0 | Y64: 0
A65: 313 | B65: Calgary | C65: Developed | D65: ALYTH/BONNYBROOK | E65: Established | F65: EA | G65: 21.23155715 | H65: 0 | I65: 0 | J65: 0 | K65: 0 | L65: =IF(F65="Current ASP",IF(ISERROR(VLOOKUP(A65,#REF!,3,FALSE)),1,1-VLOOKUP(A65,#REF!,3,FALSE)),0) -> 0 | M65: 0 | N65: 0 | O65: 0 | P65: 0 | Q65: 174.8720102 | R65: 174.8720102 | S65: 0 | T65: 0 | U65: 174.8720102 | V65: 0 | W65: 0 | X65: 0 | Y65: 0
A66: 314 | B66: Calgary | C66: Developed | D66: ALYTH/BONNYBROOK | E66: Established | F66: EA | G66: 7.621542558 | H66: 0 | I66: 0 | J66: 0 | K66: 0 | L66: =IF(F66="Current ASP",IF(ISERROR(VLOOKUP(A66,#REF!,3,FALSE)),1,1-VLOOKUP(A66,#REF!,3,FALSE)),0) -> 0 | M66: 0 | N66: 0 | O66: 0 | P66: 0 | Q66: 330.3863928 | R66: 330.3863928 | S66: 0 | T66: 0 | U66: 330.3863928 | V66: 0 | W66: 0 | X66: 0 | Y66: 0
A67: 315 | B67: Calgary | C67: Developed | D67: RAMSAY | E67: Established | F67: EA | G67: 25.21069536 | H67: 0 | I67: 0 | J67: 0 | K67: 0 | L67: =IF(F67="Current ASP",IF(ISERROR(VLOOKUP(A67,#REF!,3,FALSE)),1,1-VLOOKUP(A67,#REF!,3,FALSE)),0) -> 0 | M67: 1436.376955 | N67: 1436.376955 | O67: 0 | P67: 0 | Q67: 2062.824074 | R67: 2062.824074 | S67: 0 | T67: 0 | U67: 3499.201029 | V67: 0 | W67: 0 | X67: 0 | Y67: 0
A68: 316 | B68: Calgary | C68: Developed | D68: RAMSAY | E68: Established | F68: EA | G68: 16.61743352 | H68: 0 | I68: 0 | J68: 0 | K68: 0 | L68: =IF(F68="Current ASP",IF(ISERROR(VLOOKUP(A68,#REF!,3,FALSE)),1,1-VLOOKUP(A68,#REF!,3,FALSE)),0) -> 0 | M68: 856.6642246 | N68: 856.6642246 | O68: 0 | P68: 0 | Q68: 81.11343377 | R68: 81.11343377 | S68: 0 | T68: 0 | U68: 937.7776584 | V68: 0 | W68: 0 | X68: 0 | Y68: 0
A69: 317 | B69: Calgary | C69: Developed | D69: RAMSAY | E69: Established | F69: EA | G69: 13.60693447 | H69: 0 | I69: 0 | J69: 0 | K69: 0 | L69: =IF(F69="Current ASP",IF(ISERROR(VLOOKUP(A69,#REF!,3,FALSE)),1,1-VLOOKUP(A69,#REF!,3,FALSE)),0) -> 0 | M69: 656.36755 | N69: 656.36755 | O69: 0 | P69: 0 | Q69: 756.8533808 | R69: 756.8533808 | S69: 0 | T69: 0 | U69: 1413.220931 | V69: 0 | W69: 0 | X69: 0 | Y69: 0
A70: 318 | B70: Calgary | C70: Developed | D70: ALYTH/BONNYBROOK | E70: Established | F70: EA | G70: 34.84890198 | H70: 0 | I70: 0 | J70: 0 | K70: 0 | L70: =IF(F70="Current ASP",IF(ISERROR(VLOOKUP(A70,#REF!,3,FALSE)),1,1-VLOOKUP(A70,#REF!,3,FALSE)),0) -> 0 | M70: 6916.873529 | N70: 6916.873529 | O70: 0 | P70: 0 | Q70: 1493.074086 | R70: 1493.074086 | S70: 0 | T70: 0 | U70: 8409.947615 | V70: 0 | W70: 0 | X70: 0 | Y70: 0
A71: 319 | B71: Calgary | C71: Developed | D71: BURNS INDUSTRIAL | E71: Established | F71: EA | G71: 20.12560803 | H71: 0 | I71: 0 | J71: 0 | K71: 0 | L71: =IF(F71="Current ASP",IF(ISERROR(VLOOKUP(A71,#REF!,3,FALSE)),1,1-VLOOKUP(A71,#REF!,3,FALSE)),0) -> 0 | M71: 0 | N71: 0 | O71: 0 | P71: 0 | Q71: 453.8578192 | R71: 453.8578192 | S71: 0 | T71: 0 | U71: 453.8578192 | V71: 0 | W71: 0 | X71: 0 | Y71: 0
A72: 320 | B72: Calgary | C72: Developed | D72: RAMSAY | E72: Established | F72: EA | G72: 22.99275244 | H72: 0 | I72: 0 | J72: 0 | K72: 0 | L72: =IF(F72="Current ASP",IF(ISERROR(VLOOKUP(A72,#REF!,3,FALSE)),1,1-VLOOKUP(A72,#REF!,3,FALSE)),0) -> 0 | M72: 0 | N72: 0 | O72: 0 | P72: 0 | Q72: 3476.574033 | R72: 3476.574033 | S72: 0 | T72: 0 | U72: 3476.574033 | V72: 0 | W72: 0 | X72: 0 | Y72: 0
A73: 321 | B73: Calgary | C73: Developed | D73: MANCHESTER INDUSTRIAL | E73: Established | F73: EA | G73: 0.5914463476 | H73: 0 | I73: 0 | J73: 0 | K73: 0 | L73: =IF(F73="Current ASP",IF(ISERROR(VLOOKUP(A73,#REF!,3,FALSE)),1,1-VLOOKUP(A73,#REF!,3,FALSE)),0) -> 0 | M73: 0 | N73: 0 | O73: 0 | P73: 0 | Q73: 14.10431005 | R73: 14.10431005 | S73: 0 | T73: 0 | U73: 14.10431005 | V73: 0 | W73: 0 | X73: 0 | Y73: 0
A74: 322 | B74: Calgary | C74: Developed | D74: MANCHESTER INDUSTRIAL | E74: Established | F74: EA | G74: 15.02573576 | H74: 0 | I74: 0 | J74: =IF(H74>0,H74/G74,0) -> 0 | K74: =IF(E74="Greenfield",1-J74,0) -> 0 | L74: =IF(F74="Current ASP",IF(ISERROR(VLOOKUP(A74,#REF!,3,FALSE)),1,1-VLOOKUP(A74,#REF!,3,FALSE)),0) -> 0 | M74: 0 | N74: =IF($E74="Established",$M74,0) -> 0 | O74: =IF($E74="Greenfield",$M74*J74,0) -> 0 | P74: =IF($E74="Greenfield",$M74*K74,0) -> 0 | Q74: 117.8269303 | R74: =IF($E74="Established",$Q74,0) -> 117.8269303 | S74: =IF($E74="Greenfield",$Q74*J74,0) -> 0 | T74: =IF($E74="Greenfield",$Q74*K74,0) -> 0 | U74: =N74+R74 -> 117.8269303 | V74: =O74+S74 -> 0 | W74: =P74+T74 -> 0 | X74: =L74*M74*K74 -> 0 | Y74: =Q74*L74*K74 -> 0
A75: 323 | B75: Calgary | C75: Developed | D75: MANCHESTER INDUSTRIAL | E75: Established | F75: EA | G75: 35.96987431 | H75: 0 | I75: 0 | J75: 0 | K75: 0 | L75: =IF(F75="Current ASP",IF(ISERROR(VLOOKUP(A75,#REF!,3,FALSE)),1,1-VLOOKUP(A75,#REF!,3,FALSE)),0) -> 0 | M75: 0 | N75: 0 | O75: 0 | P75: 0 | Q75: 1199.530312 | R75: 1199.530312 | S75: 0 | T75: 0 | U75: 1199.530312 | V75: 0 | W75: 0 | X75: 0 | Y75: 0
A76: 324 | B76: Calgary | C76: Developed | D76: HIGHFIELD | E76: Established | F76: EA | G76: 9.761782892 | H76: 0 | I76: 0 | J76: 0 | K76: 0 | L76: =IF(F76="Current ASP",IF(ISERROR(VLOOKUP(A76,#REF!,3,FALSE)),1,1-VLOOKUP(A76,#REF!,3,FALSE)),0) -> 0 | M76: 0 | N76: 0 | O76: 0 | P76: 0 | Q76: 58.59819622 | R76: 58.59819622 | S76: 0 | T76: 0 | U76: 58.59819622 | V76: 0 | W76: 0 | X76: 0 | Y76: 0
A77: 325 | B77: Calgary | C77: Developed | D77: MANCHESTER INDUSTRIAL | E77: Established | F77: EA | G77: 41.66417869 | H77: 0 | I77: 0 | J77: 0 | K77: 0 | L77: =IF(F77="Current ASP",IF(ISERROR(VLOOKUP(A77,#REF!,3,FALSE)),1,1-VLOOKUP(A77,#REF!,3,FALSE)),0) -> 0 | M77: 0 | N77: 0 | O77: 0 | P77: 0 | Q77: 2477.066846 | R77: 2477.066846 | S77: 0 | T77: 0 | U77: 2477.066846 | V77: 0 | W77: 0 | X77: 0 | Y77: 0
A78: 326 | B78: Calgary | C78: Developed | D78: MANCHESTER INDUSTRIAL | E78: Established | F78: EA | G78: 20.4026 | H78: 0 | I78: 0 | J78: 0 | K78: 0 | L78: =IF(F78="Current ASP",IF(ISERROR(VLOOKUP(A78,#REF!,3,FALSE)),1,1-VLOOKUP(A78,#REF!,3,FALSE)),0) -> 0 | M78: 0 | N78: 0 | O78: 0 | P78: 0 | Q78: 707.7275836 | R78: 707.7275836 | S78: 0 | T78: 0 | U78: 707.7275836 | V78: 0 | W78: 0 | X78: 0 | Y78: 0
A79: 327 | B79: Calgary | C79: Developed | D79: HIGHFIELD | E79: Established | F79: EA | G79: 51.85155496 | H79: 0 | I79: 0 | J79: 0 | K79: 0 | L79: =IF(F79="Current ASP",IF(ISERROR(VLOOKUP(A79,#REF!,3,FALSE)),1,1-VLOOKUP(A79,#REF!,3,FALSE)),0) -> 0 | M79: 0 | N79: 0 | O79: 0 | P79: 0 | Q79: 1974.592149 | R79: 1974.592149 | S79: 0 | T79: 0 | U79: 1974.592149 | V79: 0 | W79: 0 | X79: 0 | Y79: 0
A80: 328 | B80: Calgary | C80: Developed | D80: MANCHESTER | E80: Established | F80: EA | G80: 6.210239433 | H80: 0 | I80: 0 | J80: 0 | K80: 0 | L80: =IF(F80="Current ASP",IF(ISERROR(VLOOKUP(A80,#REF!,3,FALSE)),1,1-VLOOKUP(A80,#REF!,3,FALSE)),0) -> 0 | M80: 123.5906312 | N80: 123.5906312 | O80: 0 | P80: 0 | Q80: 1423.913472 | R80: 1423.913472 | S80: 0 | T80: 0 | U80: 1547.504103 | V80: 0 | W80: 0 | X80: 0 | Y80: 0
A81: 329 | B81: Calgary | C81: Developed | D81: MANCHESTER INDUSTRIAL | E81: Established | F81: EA | G81: 24.16164355 | H81: 0 | I81: 0 | J81: 0 | K81: 0 | L81: =IF(F81="Current ASP",IF(ISERROR(VLOOKUP(A81,#REF!,3,FALSE)),1,1-VLOOKUP(A81,#REF!,3,FALSE)),0) -> 0 | M81: 0 | N81: 0 | O81: 0 | P81: 0 | Q81: 1040.071007 | R81: 1040.071007 | S81: 0 | T81: 0 | U81: 1040.071007 | V81: 0 | W81: 0 | X81: 0 | Y81: 0
A82: 330 | B82: Calgary | C82: Developed | D82: MANCHESTER INDUSTRIAL | E82: Established | F82: EA | G82: 41.1953747 | H82: 0 | I82: 0 | J82: 0 | K82: 0 | L82: =IF(F82="Current ASP",IF(ISERROR(VLOOKUP(A82,#REF!,3,FALSE)),1,1-VLOOKUP(A82,#REF!,3,FALSE)),0) -> 0 | M82: 0 | N82: 0 | O82: 0 | P82: 0 | Q82: 1983.692145 | R82: 1983.692145 | S82: 0 | T82: 0 | U82: 1983.692145 | V82: 0 | W82: 0 | X82: 0 | Y82: 0
A83: 331 | B83: Calgary | C83: Developed | D83: MANCHESTER INDUSTRIAL | E83: Established | F83: EA | G83: 42.46872004 | H83: 0 | I83: 0 | J83: 0 | K83: 0 | L83: =IF(F83="Current ASP",IF(ISERROR(VLOOKUP(A83,#REF!,3,FALSE)),1,1-VLOOKUP(A83,#REF!,3,FALSE)),0) -> 0 | M83: 0 | N83: 0 | O83: 0 | P83: 0 | Q83: 3580.644183 | R83: 3580.644183 | S83: 0 | T83: 0 | U83: 3580.644183 | V83: 0 | W83: 0 | X83: 0 | Y83: 0
A84: 332 | B84: Calgary | C84: Developed | D84: MANCHESTER | E84: Established | F84: EA | G84: 18.10796371 | H84: 0 | I84: 0 | J84: 0 | K84: 0 | L84: =IF(F84="Current ASP",IF(ISERROR(VLOOKUP(A84,#REF!,3,FALSE)),1,1-VLOOKUP(A84,#REF!,3,FALSE)),0) -> 0 | M84: 408.7967565 | N84: 408.7967565 | O84: 0 | P84: 0 | Q84: 4269.239446 | R84: 4269.239446 | S84: 0 | T84: 0 | U84: 4678.036203 | V84: 0 | W84: 0 | X84: 0 | Y84: 0
A85: 333 | B85: Calgary | C85: Developed | D85: MANCHESTER INDUSTRIAL | E85: Established | F85: EA | G85: 18.20643337 | H85: 0 | I85: 0 | J85: 0 | K85: 0 | L85: =IF(F85="Current ASP",IF(ISERROR(VLOOKUP(A85,#REF!,3,FALSE)),1,1-VLOOKUP(A85,#REF!,3,FALSE)),0) -> 0 | M85: 6688.845089 | N85: 6688.845089 | O85: 0 | P85: 0 | Q85: 5006.753645 | R85: 5006.753645 | S85: 0 | T85: 0 | U85: 11695.59873 | V85: 0 | W85: 0 | X85: 0 | Y85: 0
A86: 334 | B86: Calgary | C86: Developed | D86: MANCHESTER INDUSTRIAL | E86: Established | F86: EA | G86: 46.05581991 | H86: 0 | I86: 0 | J86: 0 | K86: 0 | L86: =IF(F86="Current ASP",IF(ISERROR(VLOOKUP(A86,#REF!,3,FALSE)),1,1-VLOOKUP(A86,#REF!,3,FALSE)),0) -> 0 | M86: 0 | N86: 0 | O86: 0 | P86: 0 | Q86: 2758.339652 | R86: 2758.339652 | S86: 0 | T86: 0 | U86: 2758.339652 | V86: 0 | W86: 0 | X86: 0 | Y86: 0
A87: 335 | B87: Calgary | C87: Developed | D87: MANCHESTER INDUSTRIAL | E87: Established | F87: EA | G87: 12.04578534 | H87: 0 | I87: 0 | J87: 0 | K87: 0 | L87: =IF(F87="Current ASP",IF(ISERROR(VLOOKUP(A87,#REF!,3,FALSE)),1,1-VLOOKUP(A87,#REF!,3,FALSE)),0) -> 0 | M87: 4629.182566 | N87: 4629.182566 | O87: 0 | P87: 0 | Q87: 4191.493163 | R87: 4191.493163 | S87: 0 | T87: 0 | U87: 8820.675729 | V87: 0 | W87: 0 | X87: 0 | Y87: 0
A88: 336 | B88: Calgary | C88: Developed | D88: MANCHESTER INDUSTRIAL | E88: Established | F88: EA | G88: 45.86305587 | H88: 0 | I88: 0 | J88: 0 | K88: 0 | L88: =IF(F88="Current ASP",IF(ISERROR(VLOOKUP(A88,#REF!,3,FALSE)),1,1-VLOOKUP(A88,#REF!,3,FALSE)),0) -> 0 | M88: 1595.327995 | N88: 1595.327995 | O88: 0 | P88: 0 | Q88: 6605.168948 | R88: 6605.168948 | S88: 0 | T88: 0 | U88: 8200.496943 | V88: 0 | W88: 0 | X88: 0 | Y88: 0
A89: 337 | B89: Calgary | C89: Developed | D89: BURNS INDUSTRIAL | E89: Established | F89: EA | G89: 24.88117122 | H89: 0 | I89: 0 | J89: 0 | K89: 0 | L89: =IF(F89="Current ASP",IF(ISERROR(VLOOKUP(A89,#REF!,3,FALSE)),1,1-VLOOKUP(A89,#REF!,3,FALSE)),0) -> 0 | M89: 0 | N89: 0 | O89: 0 | P89: 0 | Q89: 1199.464874 | R89: 1199.464874 | S89: 0 | T89: 0 | U89: 1199.464874 | V89: 0 | W89: 0 | X89: 0 | Y89: 0
A90: 338 | B90: Calgary | C90: Developed | D90: BURNS INDUSTRIAL | E90: Established | F90: EA | G90: 63.29249051 | H90: 0 | I90: 0 | J90: 0 | K90: 0 | L90: =IF(F90="Current ASP",IF(ISERROR(VLOOKUP(A90,#REF!,3,FALSE)),1,1-VLOOKUP(A90,#REF!,3,FALSE)),0) -> 0 | M90: 0 | N90: 0 | O90: 0 | P90: 0 | Q90: 4552.460738 | R90: 4552.460738 | S90: 0 | T90: 0 | U90: 4552.460738 | V90: 0 | W90: 0 | X90: 0 | Y90: 0
A91: 339 | B91: Calgary | C91: Developed | D91: HIGHFIELD | E91: Established | F91: EA | G91: 38.04982193 | H91: 0 | I91: 0 | J91: 0 | K91: 0 | L91: =IF(F91="Current ASP",IF(ISERROR(VLOOKUP(A91,#REF!,3,FALSE)),1,1-VLOOKUP(A91,#REF!,3,FALSE)),0) -> 0 | M91: 0 | N91: 0 | O91: 0 | P91: 0 | Q91: 1358.164932 | R91: 1358.164932 | S91: 0 | T91: 0 | U91: 1358.164932 | V91: 0 | W91: 0 | X91: 0 | Y91: 0
A92: 340 | B92: Calgary | C92: Developed | D92: HIGHFIELD | E92: Established | F92: EA | G92: 19.9462686 | H92: 0 | I92: 0 | J92: 0 | K92: 0 | L92: =IF(F92="Current ASP",IF(ISERROR(VLOOKUP(A92,#REF!,3,FALSE)),1,1-VLOOKUP(A92,#REF!,3,FALSE)),0) -> 0 | M92: 0 | N92: 0 | O92: 0 | P92: 0 | Q92: 1443.053015 | R92: 1443.053015 | S92: 0 | T92: 0 | U92: 1443.053015 | V92: 0 | W92: 0 | X92: 0 | Y92: 0
A93: 341 | B93: Calgary | C93: Developed | D93: HIGHFIELD | E93: Established | F93: EA | G93: 22.10069792 | H93: 0 | I93: 0 | J93: 0 | K93: 0 | L93: =IF(F93="Current ASP",IF(ISERROR(VLOOKUP(A93,#REF!,3,FALSE)),1,1-VLOOKUP(A93,#REF!,3,FALSE)),0) -> 0 | M93: 0 | N93: 0 | O93: 0 | P93: 0 | Q93: 1795.307395 | R93: 1795.307395 | S93: 0 | T93: 0 | U93: 1795.307395 | V93: 0 | W93: 0 | X93: 0 | Y93: 0
A94: 342 | B94: Calgary | C94: Developed | D94: HIGHFIELD | E94: Established | F94: EA | G94: 23.79221736 | H94: 0 | I94: 0 | J94: 0 | K94: 0 | L94: =IF(F94="Current ASP",IF(ISERROR(VLOOKUP(A94,#REF!,3,FALSE)),1,1-VLOOKUP(A94,#REF!,3,FALSE)),0) -> 0 | M94: 0 | N94: 0 | O94: 0 | P94: 0 | Q94: 1028.547173 | R94: 1028.547173 | S94: 0 | T94: 0 | U94: 1028.547173 | V94: 0 | W94: 0 | X94: 0 | Y94: 0
A95: 343 | B95: Calgary | C95: Developed | D95: ALYTH/BONNYBROOK | E95: Established | F95: EA | G95: 27.47366678 | H95: 0 | I95: 0 | J95: 0 | K95: 0 | L95: =IF(F95="Current ASP",IF(ISERROR(VLOOKUP(A95,#REF!,3,FALSE)),1,1-VLOOKUP(A95,#REF!,3,FALSE)),0) -> 0 | M95: 0 | N95: 0 | O95: 0 | P95: 0 | Q95: 818.5317656 | R95: 818.5317656 | S95: 0 | T95: 0 | U95: 818.5317656 | V95: 0 | W95: 0 | X95: 0 | Y95: 0
A96: 344 | B96: Calgary | C96: Developed | D96: ALYTH/BONNYBROOK | E96: Established | F96: EA | G96: 47.5703334 | H96: 0 | I96: 0 | J96: 0 | K96: 0 | L96: =IF(F96="Current ASP",IF(ISERROR(VLOOKUP(A96,#REF!,3,FALSE)),1,1-VLOOKUP(A96,#REF!,3,FALSE)),0) -> 0 | M96: 6.017618106 | N96: 6.017618106 | O96: 0 | P96: 0 | Q96: 4152.487877 | R96: 4152.487877 | S96: 0 | T96: 0 | U96: 4158.505495 | V96: 0 | W96: 0 | X96: 0 | Y96: 0
A97: 345 | B97: Calgary | C97: Developed | D97: ALYTH/BONNYBROOK | E97: Established | F97: EA | G97: 14.89645007 | H97: 0 | I97: 0 | J97: 0 | K97: 0 | L97: =IF(F97="Current ASP",IF(ISERROR(VLOOKUP(A97,#REF!,3,FALSE)),1,1-VLOOKUP(A97,#REF!,3,FALSE)),0) -> 0 | M97: 0 | N97: 0 | O97: 0 | P97: 0 | Q97: 232.8249062 | R97: 232.8249062 | S97: 0 | T97: 0 | U97: 232.8249062 | V97: 0 | W97: 0 | X97: 0 | Y97: 0
A98: 346 | B98: Calgary | C98: Developed | D98: HIGHFIELD | E98: Established | F98: EA | G98: 38.09034998 | H98: 0 | I98: 0 | J98: 0 | K98: 0 | L98: =IF(F98="Current ASP",IF(ISERROR(VLOOKUP(A98,#REF!,3,FALSE)),1,1-VLOOKUP(A98,#REF!,3,FALSE)),0) -> 0 | M98: 0 | N98: 0 | O98: 0 | P98: 0 | Q98: 1560.181775 | R98: 1560.181775 | S98: 0 | T98: 0 | U98: 1560.181775 | V98: 0 | W98: 0 | X98: 0 | Y98: 0
A99: 347 | B99: Calgary | C99: Developed | D99: MANCHESTER INDUSTRIAL | E99: Established | F99: EA | G99: 28.75204739 | H99: 0 | I99: 0 | J99: 0 | K99: 0 | L99: =IF(F99="Current ASP",IF(ISERROR(VLOOKUP(A99,#REF!,3,FALSE)),1,1-VLOOKUP(A99,#REF!,3,FALSE)),0) -> 0 | M99: 0 | N99: 0 | O99: 0 | P99: 0 | Q99: 1632.873903 | R99: 1632.873903 | S99: 0 | T99: 0 | U99: 1632.873903 | V99: 0 | W99: 0 | X99: 0 | Y99: 0
A100: 348 | B100: Calgary | C100: Developed | D100: BURNS INDUSTRIAL | E100: Established | F100: EA | G100: 39.60856915 | H100: 0 | I100: 0 | J100: 0 | K100: 0 | L100: =IF(F100="Current ASP",IF(ISERROR(VLOOKUP(A100,#REF!,3,FALSE)),1,1-VLOOKUP(A100,#REF!,3,FALSE)),0) -> 0 | M100: 2.691057213 | N100: 2.691057213 | O100: 0 | P100: 0 | Q100: 2865.120404 | R100: 2865.120404 | S100: 0 | T100: 0 | U100: 2867.811461 | V100: 0 | W100: 0 | X100: 0 | Y100: 0
A101: 349 | B101: Calgary | C101: Developed | D101: HIGHFIELD | E101: Established | F101: EA | G101: 18.78652981 | H101: 0 | I101: 0 | J101: 0 | K101: 0 | L101: =IF(F101="Current ASP",IF(ISERROR(VLOOKUP(A101,#REF!,3,FALSE)),1,1-VLOOKUP(A101,#REF!,3,FALSE)),0) -> 0 | M101: 0 | N101: 0 | O101: 0 | P101: 0 | Q101: 777.9049945 | R101: 777.9049945 | S101: 0 | T101: 0 | U101: 777.9049945 | V101: 0 | W101: 0 | X101: 0 | Y101: 0
A102: 350 | B102: Calgary | C102: Developed | D102: ALYTH/BONNYBROOK | E102: Established | F102: EA | G102: 35.37524559 | H102: 0 | I102: 0 | J102: 0 | K102: 0 | L102: =IF(F102="Current ASP",IF(ISERROR(VLOOKUP(A102,#REF!,3,FALSE)),1,1-VLOOKUP(A102,#REF!,3,FALSE)),0) -> 0 | M102: 0 | N102: 0 | O102: 0 | P102: 0 | Q102: 447.4203491 | R102: 447.4203491 | S102: 0 | T102: 0 | U102: 447.4203491 | V102: 0 | W102: 0 | X102: 0 | Y102: 0
A103: 351 | B103: Calgary | C103: Developed | D103: ALYTH/BONNYBROOK | E103: Established | F103: EA | G103: 34.84182243 | H103: 0 | I103: 0 | J103: 0 | K103: 0 | L103: =IF(F103="Current ASP",IF(ISERROR(VLOOKUP(A103,#REF!,3,FALSE)),1,1-VLOOKUP(A103,#REF!,3,FALSE)),0) -> 0 | M103: 0 | N103: 0 | O103: 0 | P103: 0 | Q103: 550.215449 | R103: 550.215449 | S103: 0 | T103: 0 | U103: 550.215449 | V103: 0 | W103: 0 | X103: 0 | Y103: 0
A104: 352 | B104: Calgary | C104: Developed | D104: HIGHFIELD | E104: Established | F104: EA | G104: 23.22468948 | H104: 0 | I104: 0 | J104: 0 | K104: 0 | L104: =IF(F104="Current ASP",IF(ISERROR(VLOOKUP(A104,#REF!,3,FALSE)),1,1-VLOOKUP(A104,#REF!,3,FALSE)),0) -> 0 | M104: 0 | N104: 0 | O104: 0 | P104: 0 | Q104: 680.7430155 | R104: 680.7430155 | S104: 0 | T104: 0 | U104: 680.7430155 | V104: 0 | W104: 0 | X104: 0 | Y104: 0
A105: 354 | B105: Calgary | C105: Developed | D105: RAMSAY | E105: Established | F105: EA | G105: 14.58780519 | H105: 0 | I105: 0 | J105: 0 | K105: 0 | L105: =IF(F105="Current ASP",IF(ISERROR(VLOOKUP(A105,#REF!,3,FALSE)),1,1-VLOOKUP(A105,#REF!,3,FALSE)),0) -> 0 | M105: 246.4217305 | N105: 246.4217305 | O105: 0 | P105: 0 | Q105: 66.95875076 | R105: 66.95875076 | S105: 0 | T105: 0 | U105: 313.3804813 | V105: 0 | W105: 0 | X105: 0 | Y105: 0
A106: 356 | B106: Calgary | C106: Developed | D106: MANCHESTER | E106: Established | F106: EA | G106: 13.61543552 | H106: 0 | I106: 0 | J106: 0 | K106: 0 | L106: =IF(F106="Current ASP",IF(ISERROR(VLOOKUP(A106,#REF!,3,FALSE)),1,1-VLOOKUP(A106,#REF!,3,FALSE)),0) -> 0 | M106: 6873.760457 | N106: 6873.760457 | O106: 0 | P106: 0 | Q106: 5836.401438 | R106: 5836.401438 | S106: 0 | T106: 0 | U106: 12710.16189 | V106: 0 | W106: 0 | X106: 0 | Y106: 0
A107: 357 | B107: Calgary | C107: Developed | D107: MANCHESTER INDUSTRIAL | E107: Established | F107: EA | G107: 21.17078189 | H107: 0 | I107: 0 | J107: 0 | K107: 0 | L107: =IF(F107="Current ASP",IF(ISERROR(VLOOKUP(A107,#REF!,3,FALSE)),1,1-VLOOKUP(A107,#REF!,3,FALSE)),0) -> 0 | M107: 0 | N107: 0 | O107: 0 | P107: 0 | Q107: 760.501846 | R107: 760.501846 | S107: 0 | T107: 0 | U107: 760.501846 | V107: 0 | W107: 0 | X107: 0 | Y107: 0
A108: 358 | B108: Calgary | C108: Developed | D108: MANCHESTER | E108: Established | F108: EA | G108: 9.345262461 | H108: 0 | I108: 0 | J108: 0 | K108: 0 | L108: =IF(F108="Current ASP",IF(ISERROR(VLOOKUP(A108,#REF!,3,FALSE)),1,1-VLOOKUP(A108,#REF!,3,FALSE)),0) -> 0 | M108: 1057.516046 | N108: 1057.516046 | O108: 0 | P108: 0 | Q108: 490.1528284 | R108: 490.1528284 | S108: 0 | T108: 0 | U108: 1547.668875 | V108: 0 | W108: 0 | X108: 0 | Y108: 0
A109: 401 | B109: Calgary | C109: Developed | D109: SUNALTA | E109: Established | F109: EA | G109: 11.7508943 | H109: 0 | I109: 0 | J109: 0 | K109: 0 | L109: =IF(F109="Current ASP",IF(ISERROR(VLOOKUP(A109,#REF!,3,FALSE)),1,1-VLOOKUP(A109,#REF!,3,FALSE)),0) -> 0 | M109: 0 | N109: 0 | O109: 0 | P109: 0 | Q109: 139.2513525 | R109: 139.2513525 | S109: 0 | T109: 0 | U109: 139.2513525 | V109: 0 | W109: 0 | X109: 0 | Y109: 0
A110: 402 | B110: Calgary | C110: Developed | D110: SUNALTA | E110: Established | F110: EA | G110: 22.29763769 | H110: 0 | I110: 0 | J110: 0 | K110: 0 | L110: =IF(F110="Current ASP",IF(ISERROR(VLOOKUP(A110,#REF!,3,FALSE)),1,1-VLOOKUP(A110,#REF!,3,FALSE)),0) -> 0 | M110: 9374.124317 | N110: 9374.124317 | O110: 0 | P110: 0 | Q110: 555.5209555 | R110: 555.5209555 | S110: 0 | T110: 0 | U110: 9929.645273 | V110: 0 | W110: 0 | X110: 0 | Y110: 0
A111: 403 | B111: Calgary | C111: Developed | D111: SUNALTA | E111: Established | F111: EA | G111: 29.57087451 | H111: 0 | I111: 0 | J111: 0 | K111: 0 | L111: =IF(F111="Current ASP",IF(ISERROR(VLOOKUP(A111,#REF!,3,FALSE)),1,1-VLOOKUP(A111,#REF!,3,FALSE)),0) -> 0 | M111: 3683.335471 | N111: 3683.335471 | O111: 0 | P111: 0 | Q111: 7807.747013 | R111: 7807.747013 | S111: 0 | T111: 0 | U111: 11491.08248 | V111: 0 | W111: 0 | X111: 0 | Y111: 0
A112: 404 | B112: Calgary | C112: Developed | D112: SUNALTA | E112: Established | F112: EA | G112: 22.07039404 | H112: 0 | I112: 0 | J112: 0 | K112: 0 | L112: =IF(F112="Current ASP",IF(ISERROR(VLOOKUP(A112,#REF!,3,FALSE)),1,1-VLOOKUP(A112,#REF!,3,FALSE)),0) -> 0 | M112: 1583.485338 | N112: 1583.485338 | O112: 0 | P112: 0 | Q112: 5197.609179 | R112: 5197.609179 | S112: 0 | T112: 0 | U112: 6781.094517 | V112: 0 | W112: 0 | X112: 0 | Y112: 0
A113: 405 | B113: Calgary | C113: Developed | D113: SCARBORO | E113: Established | F113: EA | G113: 38.91683818 | H113: 0 | I113: 0 | J113: 0 | K113: 0 | L113: =IF(F113="Current ASP",IF(ISERROR(VLOOKUP(A113,#REF!,3,FALSE)),1,1-VLOOKUP(A113,#REF!,3,FALSE)),0) -> 0 | M113: 1084.105808 | N113: 1084.105808 | O113: 0 | P113: 0 | Q113: 292.8605576 | R113: 292.8605576 | S113: 0 | T113: 0 | U113: 1376.966366 | V113: 0 | W113: 0 | X113: 0 | Y113: 0
A114: 406 | B114: Calgary | C114: Developed | D114: RICHMOND | E114: Established | F114: EA | G114: 8.282050953 | H114: 0 | I114: 0 | J114: 0 | K114: 0 | L114: =IF(F114="Current ASP",IF(ISERROR(VLOOKUP(A114,#REF!,3,FALSE)),1,1-VLOOKUP(A114,#REF!,3,FALSE)),0) -> 0 | M114: 54.07456032 | N114: 54.07456032 | O114: 0 | P114: 0 | Q114: 718.4728253 | R114: 718.4728253 | S114: 0 | T114: 0 | U114: 772.5473856 | V114: 0 | W114: 0 | X114: 0 | Y114: 0
A115: 407 | B115: Calgary | C115: Developed | D115: RICHMOND | E115: Established | F115: EA | G115: 25.85076487 | H115: 0 | I115: 0 | J115: 0 | K115: 0 | L115: =IF(F115="Current ASP",IF(ISERROR(VLOOKUP(A115,#REF!,3,FALSE)),1,1-VLOOKUP(A115,#REF!,3,FALSE)),0) -> 0 | M115: 879.1306464 | N115: 879.1306464 | O115: 0 | P115: 0 | Q115: 200.6301983 | R115: 200.6301983 | S115: 0 | T115: 0 | U115: 1079.760845 | V115: 0 | W115: 0 | X115: 0 | Y115: 0
A116: 408 | B116: Calgary | C116: Developed | D116: RICHMOND | E116: Established | F116: EA | G116: 21.26850042 | H116: 0 | I116: 0 | J116: 0 | K116: 0 | L116: =IF(F116="Current ASP",IF(ISERROR(VLOOKUP(A116,#REF!,3,FALSE)),1,1-VLOOKUP(A116,#REF!,3,FALSE)),0) -> 0 | M116: 782.4077978 | N116: 782.4077978 | O116: 0 | P116: 0 | Q116: 39.23491446 | R116: 39.23491446 | S116: 0 | T116: 0 | U116: 821.6427123 | V116: 0 | W116: 0 | X116: 0 | Y116: 0
A117: 409 | B117: Calgary | C117: Developed | D117: BANKVIEW | E117: Established | F117: EA | G117: 39.74450008 | H117: 0 | I117: 0 | J117: 0 | K117: 0 | L117: =IF(F117="Current ASP",IF(ISERROR(VLOOKUP(A117,#REF!,3,FALSE)),1,1-VLOOKUP(A117,#REF!,3,FALSE)),0) -> 0 | M117: 3737.461136 | N117: 3737.461136 | O117: 0 | P117: 0 | Q117: 734.5297772 | R117: 734.5297772 | S117: 0 | T117: 0 | U117: 4471.990913 | V117: 0 | W117: 0 | X117: 0 | Y117: 0
A118: 410 | B118: Calgary | C118: Developed | D118: SOUTH CALGARY | E118: Established | F118: EA | G118: 72.30124323 | H118: 0 | I118: 0 | J118: 0 | K118: 0 | L118: =IF(F118="Current ASP",IF(ISERROR(VLOOKUP(A118,#REF!,3,FALSE)),1,1-VLOOKUP(A118,#REF!,3,FALSE)),0) -> 0 | M118: 4252.216783 | N118: 4252.216783 | O118: 0 | P118: 0 | Q118: 1177.778679 | R118: 1177.778679 | S118: 0 | T118: 0 | U118: 5429.995462 | V118: 0 | W118: 0 | X118: 0 | Y118: 0
A119: 411 | B119: Calgary | C119: Developed | D119: RICHMOND | E119: Established | F119: EA | G119: 39.47870899 | H119: 0 | I119: 0 | J119: 0 | K119: 0 | L119: =IF(F119="Current ASP",IF(ISERROR(VLOOKUP(A119,#REF!,3,FALSE)),1,1-VLOOKUP(A119,#REF!,3,FALSE)),0) -> 0 | M119: 1814.064182 | N119: 1814.064182 | O119: 0 | P119: 0 | Q119: 441.433313 | R119: 441.433313 | S119: 0 | T119: 0 | U119: 2255.497495 | V119: 0 | W119: 0 | X119: 0 | Y119: 0
A120: 412 | B120: Calgary | C120: Developed | D120: ALTADORE | E120: Established | F120: EA | G120: 80.7370623 | H120: 0 | I120: 0 | J120: 0 | K120: 0 | L120: =IF(F120="Current ASP",IF(ISERROR(VLOOKUP(A120,#REF!,3,FALSE)),1,1-VLOOKUP(A120,#REF!,3,FALSE)),0) -> 0 | M120: 4704.555415 | N120: 4704.555415 | O120: 0 | P120: 0 | Q120: 1428.589059 | R120: 1428.589059 | S120: 0 | T120: 0 | U120: 6133.144474 | V120: 0 | W120: 0 | X120: 0 | Y120: 0
A121: 413 | B121: Calgary | C121: Developed | D121: GARRISON WOODS | E121: Established | F121: EA | G121: 72.45650762 | H121: 0 | I121: 0 | J121: 0 | K121: 0 | L121: =IF(F121="Current ASP",IF(ISERROR(VLOOKUP(A121,#REF!,3,FALSE)),1,1-VLOOKUP(A121,#REF!,3,FALSE)),0) -> 0 | M121: 3599.861391 | N121: 3599.861391 | O121: 0 | P121: 0 | Q121: 1068.51678 | R121: 1068.51678 | S121: 0 | T121: 0 | U121: 4668.378171 | V121: 0 | W121: 0 | X121: 0 | Y121: 0
A122: 414 | B122: Calgary | C122: Developed | D122: ALTADORE | E122: Established | F122: EA | G122: 65.5994547 | H122: 0 | I122: 0 | J122: 0 | K122: 0 | L122: =IF(F122="Current ASP",IF(ISERROR(VLOOKUP(A122,#REF!,3,FALSE)),1,1-VLOOKUP(A122,#REF!,3,FALSE)),0) -> 0 | M122: 3006.233806 | N122: 3006.233806 | O122: 0 | P122: 0 | Q122: 312.9630484 | R122: 312.9630484 | S122: 0 | T122: 0 | U122: 3319.196855 | V122: 0 | W122: 0 | X122: 0 | Y122: 0
A123: 415 | B123: Calgary | C123: Developed | D123: ALTADORE | E123: Established | F123: EA | G123: 37.59887958 | H123: 0 | I123: 0 | J123: 0 | K123: 0 | L123: =IF(F123="Current ASP",IF(ISERROR(VLOOKUP(A123,#REF!,3,FALSE)),1,1-VLOOKUP(A123,#REF!,3,FALSE)),0) -> 0 | M123: 1101.22233 | N123: 1101.22233 | O123: 0 | P123: 0 | Q123: 453.8563568 | R123: 453.8563568 | S123: 0 | T123: 0 | U123: 1555.078687 | V123: 0 | W123: 0 | X123: 0 | Y123: 0
A124: 416 | B124: Calgary | C124: Developed | D124: GLENMORE PARK | E124: Established | F124: EA | G124: 0.1144399318 | H124: 0 | I124: 0 | J124: 0 | K124: 0 | L124: =IF(F124="Current ASP",IF(ISERROR(VLOOKUP(A124,#REF!,3,FALSE)),1,1-VLOOKUP(A124,#REF!,3,FALSE)),0) -> 0 | M124: 6.514867618 | N124: 6.514867618 | O124: 0 | P124: 0 | Q124: 150.5069804 | R124: 150.5069804 | S124: 0 | T124: 0 | U124: 157.021848 | V124: 0 | W124: 0 | X124: 0 | Y124: 0
A125: 417 | B125: Calgary | C125: Developed | D125: NORTH GLENMORE PARK | E125: Established | F125: EA | G125: 73.75725828 | H125: 0 | I125: 0 | J125: 0 | K125: 0 | L125: =IF(F125="Current ASP",IF(ISERROR(VLOOKUP(A125,#REF!,3,FALSE)),1,1-VLOOKUP(A125,#REF!,3,FALSE)),0) -> 0 | M125: 1969.549162 | N125: 1969.549162 | O125: 0 | P125: 0 | Q125: 992.6825243 | R125: 992.6825243 | S125: 0 | T125: 0 | U125: 2962.231686 | V125: 0 | W125: 0 | X125: 0 | Y125: 0
A126: 418 | B126: Calgary | C126: Developed | D126: BEL-AIRE | E126: Established | F126: EA | G126: 57.24993482 | H126: 0 | I126: 0 | J126: 0 | K126: 0 | L126: =IF(F126="Current ASP",IF(ISERROR(VLOOKUP(A126,#REF!,3,FALSE)),1,1-VLOOKUP(A126,#REF!,3,FALSE)),0) -> 0 | M126: 895.4476821 | N126: 895.4476821 | O126: 0 | P126: 0 | Q126: 140.7494627 | R126: 140.7494627 | S126: 0 | T126: 0 | U126: 1036.197145 | V126: 0 | W126: 0 | X126: 0 | Y126: 0
A127: 419 | B127: Calgary | C127: Developed | D127: WINDSOR PARK | E127: Established | F127: EA | G127: 41.28327958 | H127: 0 | I127: 0 | J127: 0 | K127: 0 | L127: =IF(F127="Current ASP",IF(ISERROR(VLOOKUP(A127,#REF!,3,FALSE)),1,1-VLOOKUP(A127,#REF!,3,FALSE)),0) -> 0 | M127: 0 | N127: 0 | O127: 0 | P127: 0 | Q127: 109.7442113 | R127: 109.7442113 | S127: 0 | T127: 0 | U127: 109.7442113 | V127: 0 | W127: 0 | X127: 0 | Y127: 0
A128: 420 | B128: Calgary | C128: Developed | D128: BRITANNIA | E128: Established | F128: EA | G128: 42.98339094 | H128: 0 | I128: 0 | J128: 0 | K128: 0 | L128: =IF(F128="Current ASP",IF(ISERROR(VLOOKUP(A128,#REF!,3,FALSE)),1,1-VLOOKUP(A128,#REF!,3,FALSE)),0) -> 0 | M128: 760.7379791 | N128: 760.7379791 | O128: 0 | P128: 0 | Q128: 579.5602021 | R128: 579.5602021 | S128: 0 | T128: 0 | U128: 1340.298181 | V128: 0 | W128: 0 | X128: 0 | Y128: 0
A129: 421 | B129: Calgary | C129: Developed | D129: ELBOW PARK | E129: Established | F129: EA | G129: 13.40624302 | H129: 0 | I129: 0 | J129: 0 | K129: 0 | L129: =IF(F129="Current ASP",IF(ISERROR(VLOOKUP(A129,#REF!,3,FALSE)),1,1-VLOOKUP(A129,#REF!,3,FALSE)),0) -> 0 | M129: 427.2737075 | N129: 427.2737075 | O129: 0 | P129: 0 | Q129: 32.05777981 | R129: 32.05777981 | S129: 0 | T129: 0 | U129: 459.3314873 | V129: 0 | W129: 0 | X129: 0 | Y129: 0
A130: 422 | B130: Calgary | C130: Developed | D130: ELBOW PARK | E130: Established | F130: EA | G130: 56.47731551 | H130: 0 | I130: 0 | J130: 0 | K130: 0 | L130: =IF(F130="Current ASP",IF(ISERROR(VLOOKUP(A130,#REF!,3,FALSE)),1,1-VLOOKUP(A130,#REF!,3,FALSE)),0) -> 0 | M130: 2398.827893 | N130: 2398.827893 | O130: 0 | P130: 0 | Q130: 660.514158 | R130: 660.514158 | S130: 0 | T130: 0 | U130: 3059.342051 | V130: 0 | W130: 0 | X130: 0 | Y130: 0
A131: 423 | B131: Calgary | C131: Developed | D131: ELBOW PARK | E131: Established | F131: EA | G131: 0.8204974754 | H131: 0 | I131: 0 | J131: 0 | K131: 0 | L131: =IF(F131="Current ASP",IF(ISERROR(VLOOKUP(A131,#REF!,3,FALSE)),1,1-VLOOKUP(A131,#REF!,3,FALSE)),0) -> 0 | M131: 377.5455373 | N131: 377.5455373 | O131: 0 | P131: 0 | Q131: 436.3375071 | R131: 436.3375071 | S131: 0 | T131: 0 | U131: 813.8830444 | V131: 0 | W131: 0 | X131: 0 | Y131: 0
A132: 424 | B132: Calgary | C132: Developed | D132: UPPER MOUNT ROYAL | E132: Established | F132: EA | G132: 94.06173612 | H132: 0 | I132: 0 | J132: 0 | K132: 0 | L132: =IF(F132="Current ASP",IF(ISERROR(VLOOKUP(A132,#REF!,3,FALSE)),1,1-VLOOKUP(A132,#REF!,3,FALSE)),0) -> 0 | M132: 2268.741415 | N132: 2268.741415 | O132: 0 | P132: 0 | Q132: 442.4480434 | R132: 442.4480434 | S132: 0 | T132: 0 | U132: 2711.189459 | V132: 0 | W132: 0 | X132: 0 | Y132: 0
A133: 425 | B133: Calgary | C133: Developed | D133: UPPER MOUNT ROYAL | E133: Established | F133: EA | G133: 26.11799109 | H133: 0 | I133: 0 | J133: 0 | K133: 0 | L133: =IF(F133="Current ASP",IF(ISERROR(VLOOKUP(A133,#REF!,3,FALSE)),1,1-VLOOKUP(A133,#REF!,3,FALSE)),0) -> 0 | M133: 600.2340119 | N133: 600.2340119 | O133: 0 | P133: 0 | Q133: 130.4106032 | R133: 130.4106032 | S133: 0 | T133: 0 | U133: 730.6446151 | V133: 0 | W133: 0 | X133: 0 | Y133: 0
A134: 426 | B134: Calgary | C134: Developed | D134: LOWER MOUNT ROYAL | E134: Established | F134: EA | G134: 20.56569678 | H134: 0 | I134: 0 | J134: 0 | K134: 0 | L134: =IF(F134="Current ASP",IF(ISERROR(VLOOKUP(A134,#REF!,3,FALSE)),1,1-VLOOKUP(A134,#REF!,3,FALSE)),0) -> 0 | M134: 3235.504944 | N134: 3235.504944 | O134: 0 | P134: 0 | Q134: 1685.138873 | R134: 1685.138873 | S134: 0 | T134: 0 | U134: 4920.643817 | V134: 0 | W134: 0 | X134: 0 | Y134: 0
A135: 427 | B135: Calgary | C135: Developed | D135: CLIFF BUNGALOW | E135: Established | F135: EA | G135: 26.03892397 | H135: 0 | I135: 0 | J135: 0 | K135: 0 | L135: =IF(F135="Current ASP",IF(ISERROR(VLOOKUP(A135,#REF!,3,FALSE)),1,1-VLOOKUP(A135,#REF!,3,FALSE)),0) -> 0 | M135: 3129.406456 | N135: 3129.406456 | O135: 0 | P135: 0 | Q135: 7977.437762 | R135: 7977.437762 | S135: 0 | T135: 0 | U135: 11106.84422 | V135: 0 | W135: 0 | X135: 0 | Y135: 0
A136: 428 | B136: Calgary | C136: Developed | D136: MISSION | E136: Established | F136: EA | G136: 21.63185074 | H136: 0 | I136: 0 | J136: 0 | K136: 0 | L136: =IF(F136="Current ASP",IF(ISERROR(VLOOKUP(A136,#REF!,3,FALSE)),1,1-VLOOKUP(A136,#REF!,3,FALSE)),0) -> 0 | M136: 2600.426159 | N136: 2600.426159 | O136: 0 | P136: 0 | Q136: 3408.376791 | R136: 3408.376791 | S136: 0 | T136: 0 | U136: 6008.802949 | V136: 0 | W136: 0 | X136: 0 | Y136: 0
A137: 429 | B137: Calgary | C137: Developed | D137: MISSION | E137: Established | F137: EA | G137: 3.806900114 | H137: 0 | I137: 0 | J137: 0 | K137: 0 | L137: =IF(F137="Current ASP",IF(ISERROR(VLOOKUP(A137,#REF!,3,FALSE)),1,1-VLOOKUP(A137,#REF!,3,FALSE)),0) -> 0 | M137: 229.8871906 | N137: 229.8871906 | O137: 0 | P137: 0 | Q137: 4382.911651 | R137: 4382.911651 | S137: 0 | T137: 0 | U137: 4612.798841 | V137: 0 | W137: 0 | X137: 0 | Y137: 0
A138: 430 | B138: Calgary | C138: Developed | D138: ERLTON | E138: Established | F138: EA | G138: 6.958825025 | H138: 0 | I138: 0 | J138: =IF(H138>0,H138/G138,0) -> 0 | K138: =IF(E138="Greenfield",1-J138,0) -> 0 | L138: =IF(F138="Current ASP",IF(ISERROR(VLOOKUP(A138,#REF!,3,FALSE)),1,1-VLOOKUP(A138,#REF!,3,FALSE)),0) -> 0 | M138: 1292.967013 | N138: =IF($E138="Established",$M138,0) -> 1292.967013 | O138: =IF($E138="Greenfield",$M138*J138,0) -> 0 | P138: =IF($E138="Greenfield",$M138*K138,0) -> 0 | Q138: 1288.835043 | R138: =IF($E138="Established",$Q138,0) -> 1288.835043 | S138: =IF($E138="Greenfield",$Q138*J138,0) -> 0 | T138: =IF($E138="Greenfield",$Q138*K138,0) -> 0 | U138: =N138+R138 -> 2581.802056 | V138: =O138+S138 -> 0 | W138: =P138+T138 -> 0 | X138: =L138*M138*K138 -> 0 | Y138: =Q138*L138*K138 -> 0
A139: 431 | B139: Calgary | C139: Developed | D139: MISSION | E139: Established | F139: EA | G139: 3.386102234 | H139: 0 | I139: 0 | J139: 0 | K139: 0 | L139: =IF(F139="Current ASP",IF(ISERROR(VLOOKUP(A139,#REF!,3,FALSE)),1,1-VLOOKUP(A139,#REF!,3,FALSE)),0) -> 0 | M139: 101.6478979 | N139: 101.6478979 | O139: 0 | P139: 0 | Q139: 778.3588304 | R139: 778.3588304 | S139: 0 | T139: 0 | U139: 880.0067283 | V139: 0 | W139: 0 | X139: 0 | Y139: 0
A140: 432 | B140: Calgary | C140: Developed | D140: ERLTON | E140: Established | F140: EA | G140: 22.5074403 | H140: 0 | I140: 0 | J140: 0 | K140: 0 | L140: =IF(F140="Current ASP",IF(ISERROR(VLOOKUP(A140,#REF!,3,FALSE)),1,1-VLOOKUP(A140,#REF!,3,FALSE)),0) -> 0 | M140: 770.0468513 | N140: 770.0468513 | O140: 0 | P140: 0 | Q140: 310.2382995 | R140: 310.2382995 | S140: 0 | T140: 0 | U140: 1080.285151 | V140: 0 | W140: 0 | X140: 0 | Y140: 0
A141: 433 | B141: Calgary | C141: Developed | D141: ROXBORO | E141: Established | F141: EA | G141: 0.4561274905 | H141: 0 | I141: 0 | J141: 0 | K141: 0 | L141: =IF(F141="Current ASP",IF(ISERROR(VLOOKUP(A141,#REF!,3,FALSE)),1,1-VLOOKUP(A141,#REF!,3,FALSE)),0) -> 0 | M141: 489.2747329 | N141: 489.2747329 | O141: 0 | P141: 0 | Q141: 46.98755827 | R141: 46.98755827 | S141: 0 | T141: 0 | U141: 536.2622912 | V141: 0 | W141: 0 | X141: 0 | Y141: 0
A142: 434 | B142: Calgary | C142: Developed | D142: RIDEAU PARK | E142: Established | F142: EA | G142: 2.436555711 | H142: 0 | I142: 0 | J142: 0 | K142: 0 | L142: =IF(F142="Current ASP",IF(ISERROR(VLOOKUP(A142,#REF!,3,FALSE)),1,1-VLOOKUP(A142,#REF!,3,FALSE)),0) -> 0 | M142: 376.505844 | N142: 376.505844 | O142: 0 | P142: 0 | Q142: 117.0361326 | R142: 117.0361326 | S142: 0 | T142: 0 | U142: 493.5419766 | V142: 0 | W142: 0 | X142: 0 | Y142: 0
A143: 435 | B143: Calgary | C143: Developed | D143: RIDEAU PARK | E143: Established | F143: EA | G143: 3.883315438 | H143: 0 | I143: 0 | J143: 0 | K143: 0 | L143: =IF(F143="Current ASP",IF(ISERROR(VLOOKUP(A143,#REF!,3,FALSE)),1,1-VLOOKUP(A143,#REF!,3,FALSE)),0) -> 0 | M143: 311.9373956 | N143: 311.9373956 | O143: 0 | P143: 0 | Q143: 27.18743875 | R143: 27.18743875 | S143: 0 | T143: 0 | U143: 339.1248344 | V143: 0 | W143: 0 | X143: 0 | Y143: 0
A144: 436 | B144: Calgary | C144: Developed | D144: PARKHILL | E144: Established | F144: EA | G144: 12.67127697 | H144: 0 | I144: 0 | J144: 0 | K144: 0 | L144: =IF(F144="Current ASP",IF(ISERROR(VLOOKUP(A144,#REF!,3,FALSE)),1,1-VLOOKUP(A144,#REF!,3,FALSE)),0) -> 0 | M144: 723.1942097 | N144: 723.1942097 | O144: 0 | P144: 0 | Q144: 92.93246791 | R144: 92.93246791 | S144: 0 | T144: 0 | U144: 816.1266776 | V144: 0 | W144: 0 | X144: 0 | Y144: 0
A145: 437 | B145: Calgary | C145: Developed | D145: ELBOW PARK | E145: Established | F145: EA | G145: 0 | H145: 0 | I145: 0 | J145: 0 | K145: 0 | L145: =IF(F145="Current ASP",IF(ISERROR(VLOOKUP(A145,#REF!,3,FALSE)),1,1-VLOOKUP(A145,#REF!,3,FALSE)),0) -> 0 | M145: 685.7885261 | N145: 685.7885261 | O145: 0 | P145: 0 | Q145: 288.6685272 | R145: 288.6685272 | S145: 0 | T145: 0 | U145: 974.4570532 | V145: 0 | W145: 0 | X145: 0 | Y145: 0
A146: 438 | B146: Calgary | C146: Developed | D146: PARKHILL | E146: Established | F146: EA | G146: 8.131577498 | H146: 0 | I146: 0 | J146: 0 | K146: 0 | L146: =IF(F146="Current ASP",IF(ISERROR(VLOOKUP(A146,#REF!,3,FALSE)),1,1-VLOOKUP(A146,#REF!,3,FALSE)),0) -> 0 | M146: 264.7126357 | N146: 264.7126357 | O146: 0 | P146: 0 | Q146: 32.09706764 | R146: 32.09706764 | S146: 0 | T146: 0 | U146: 296.8097034 | V146: 0 | W146: 0 | X146: 0 | Y146: 0
A147: 439 | B147: Calgary | C147: Developed | D147: ELBOYA | E147: Established | F147: EA | G147: 14.73012897 | H147: 0 | I147: 0 | J147: 0 | K147: 0 | L147: =IF(F147="Current ASP",IF(ISERROR(VLOOKUP(A147,#REF!,3,FALSE)),1,1-VLOOKUP(A147,#REF!,3,FALSE)),0) -> 0 | M147: 1139.797393 | N147: 1139.797393 | O147: 0 | P147: 0 | Q147: 127.5824601 | R147: 127.5824601 | S147: 0 | T147: 0 | U147: 1267.379854 | V147: 0 | W147: 0 | X147: 0 | Y147: 0
A148: 440 | B148: Calgary | C148: Developed | D148: ELBOYA | E148: Established | F148: EA | G148: 40.9143465 | H148: 0 | I148: 0 | J148: 0 | K148: 0 | L148: =IF(F148="Current ASP",IF(ISERROR(VLOOKUP(A148,#REF!,3,FALSE)),1,1-VLOOKUP(A148,#REF!,3,FALSE)),0) -> 0 | M148: 893.0658165 | N148: 893.0658165 | O148: 0 | P148: 0 | Q148: 524.963621 | R148: 524.963621 | S148: 0 | T148: 0 | U148: 1418.029438 | V148: 0 | W148: 0 | X148: 0 | Y148: 0
A149: 441 | B149: Calgary | C149: Developed | D149: WINDSOR PARK | E149: Established | F149: EA | G149: 74.22678058 | H149: 0 | I149: 0 | J149: 0 | K149: 0 | L149: =IF(F149="Current ASP",IF(ISERROR(VLOOKUP(A149,#REF!,3,FALSE)),1,1-VLOOKUP(A149,#REF!,3,FALSE)),0) -> 0 | M149: 4876.190625 | N149: 4876.190625 | O149: 0 | P149: 0 | Q149: 919.7010197 | R149: 919.7010197 | S149: 0 | T149: 0 | U149: 5795.891645 | V149: 0 | W149: 0 | X149: 0 | Y149: 0
A150: 442 | B150: Calgary | C150: Developed | D150: MEADOWLARK PARK | E150: Established | F150: EA | G150: 34.40858037 | H150: 0 | I150: 0 | J150: 0 | K150: 0 | L150: =IF(F150="Current ASP",IF(ISERROR(VLOOKUP(A150,#REF!,3,FALSE)),1,1-VLOOKUP(A150,#REF!,3,FALSE)),0) -> 0 | M150: 712.9732269 | N150: 712.9732269 | O150: 0 | P150: 0 | Q150: 84.23269475 | R150: 84.23269475 | S150: 0 | T150: 0 | U150: 797.2059216 | V150: 0 | W150: 0 | X150: 0 | Y150: 0
A151: 443 | B151: Calgary | C151: Developed | D151: MEADOWLARK PARK | E151: Established | F151: EA | G151: 24.88056697 | H151: 0 | I151: 0 | J151: 0 | K151: 0 | L151: =IF(F151="Current ASP",IF(ISERROR(VLOOKUP(A151,#REF!,3,FALSE)),1,1-VLOOKUP(A151,#REF!,3,FALSE)),0) -> 0 | M151: 0 | N151: 0 | O151: 0 | P151: 0 | Q151: 6002.232673 | R151: 6002.232673 | S151: 0 | T151: 0 | U151: 6002.232673 | V151: 0 | W151: 0 | X151: 0 | Y151: 0
A152: 444 | B152: Calgary | C152: Developed | D152: BANKVIEW | E152: Established | F152: EA | G152: 25.45582948 | H152: 0 | I152: 0 | J152: 0 | K152: 0 | L152: =IF(F152="Current ASP",IF(ISERROR(VLOOKUP(A152,#REF!,3,FALSE)),1,1-VLOOKUP(A152,#REF!,3,FALSE)),0) -> 0 | M152: 2352.343814 | N152: 2352.343814 | O152: 0 | P152: 0 | Q152: 1235.445656 | R152: 1235.445656 | S152: 0 | T152: 0 | U152: 3587.78947 | V152: 0 | W152: 0 | X152: 0 | Y152: 0
A153: 445 | B153: Calgary | C153: Developed | D153: PARKHILL | E153: Established | F153: EA | G153: 9.522094922 | H153: 0 | I153: 0 | J153: 0 | K153: 0 | L153: =IF(F153="Current ASP",IF(ISERROR(VLOOKUP(A153,#REF!,3,FALSE)),1,1-VLOOKUP(A153,#REF!,3,FALSE)),0) -> 0 | M153: 233.707537 | N153: 233.707537 | O153: 0 | P153: 0 | Q153: 97.63892858 | R153: 97.63892858 | S153: 0 | T153: 0 | U153: 331.3464656 | V153: 0 | W153: 0 | X153: 0 | Y153: 0
A154: 446 | B154: Calgary | C154: Developed | D154: PARKHILL | E154: Established | F154: EA | G154: 9.588507299 | H154: 0 | I154: 0 | J154: 0 | K154: 0 | L154: =IF(F154="Current ASP",IF(ISERROR(VLOOKUP(A154,#REF!,3,FALSE)),1,1-VLOOKUP(A154,#REF!,3,FALSE)),0) -> 0 | M154: 474.7595651 | N154: 474.7595651 | O154: 0 | P154: 0 | Q154: 294.2765697 | R154: 294.2765697 | S154: 0 | T154: 0 | U154: 769.0361348 | V154: 0 | W154: 0 | X154: 0 | Y154: 0
A155: 447 | B155: Calgary | C155: Developed | D155: PARKHILL | E155: Established | F155: EA | G155: 8.715840632 | H155: 0 | I155: 0 | J155: 0 | K155: 0 | L155: =IF(F155="Current ASP",IF(ISERROR(VLOOKUP(A155,#REF!,3,FALSE)),1,1-VLOOKUP(A155,#REF!,3,FALSE)),0) -> 0 | M155: 327.8950756 | N155: 327.8950756 | O155: 0 | P155: 0 | Q155: 233.3935874 | R155: 233.3935874 | S155: 0 | T155: 0 | U155: 561.288663 | V155: 0 | W155: 0 | X155: 0 | Y155: 0
A156: 448 | B156: Calgary | C156: Developed | D156: PARKHILL | E156: Established | F156: EA | G156: 3.169121727 | H156: 0 | I156: 0 | J156: 0 | K156: 0 | L156: =IF(F156="Current ASP",IF(ISERROR(VLOOKUP(A156,#REF!,3,FALSE)),1,1-VLOOKUP(A156,#REF!,3,FALSE)),0) -> 0 | M156: 349.5908277 | N156: 349.5908277 | O156: 0 | P156: 0 | Q156: 343.3250716 | R156: 343.3250716 | S156: 0 | T156: 0 | U156: 692.9158993 | V156: 0 | W156: 0 | X156: 0 | Y156: 0
A157: 449 | B157: Calgary | C157: Developed | D157: MISSION | E157: Established | F157: EA | G157: 1.579917448 | H157: 0 | I157: 0 | J157: 0 | K157: 0 | L157: =IF(F157="Current ASP",IF(ISERROR(VLOOKUP(A157,#REF!,3,FALSE)),1,1-VLOOKUP(A157,#REF!,3,FALSE)),0) -> 0 | M157: 2341.607383 | N157: 2341.607383 | O157: 0 | P157: 0 | Q157: 273.5612187 | R157: 273.5612187 | S157: 0 | T157: 0 | U157: 2615.168602 | V157: 0 | W157: 0 | X157: 0 | Y157: 0
A158: 450 | B158: Calgary | C158: Developed | D158: ELBOW PARK | E158: Established | F158: EA | G158: 27.50875777 | H158: 0 | I158: 0 | J158: 0 | K158: 0 | L158: =IF(F158="Current ASP",IF(ISERROR(VLOOKUP(A158,#REF!,3,FALSE)),1,1-VLOOKUP(A158,#REF!,3,FALSE)),0) -> 0 | M158: 0 | N158: 0 | O158: 0 | P158: 0 | Q158: 0 | R158: 0 | S158: 0 | T158: 0 | U158: 0 | V158: 0 | W158: 0 | X158: 0 | Y158: 0
A159: 501 | B159: Calgary | C159: Developed | D159: PATTERSON | E159: Greenfield | F159: Current ASP | G159: 57.06405905 | H159: 57.06360117 | I159: 0.0004578829704 | J159: 0.999991976 | K159: 8.024016833e-06 | L159: =IF(F159="Current ASP",IF(ISERROR(VLOOKUP(A159,#REF!,3,FALSE)),1,1-VLOOKUP(A159,#REF!,3,FALSE)),0) -> 1 | M159: 2577.812483 | N159: 0 | O159: 2577.791798 | P159: 0.02068441075 | Q159: 367.3624693 | R159: 0 | S159: 367.3595216 | T159: 0.002947722638 | U159: 0 | V159: 2945.15132 | W159: 0.02363213339 | X159: 0.02068441075 | Y159: 0.002947722638
A160: 502 | B160: Calgary | C160: Developed | D160: PATTERSON | E160: Greenfield | F160: Current ASP | G160: 46.06340088 | H160: 46.06340088 | I160: 0 | J160: 1 | K160: 0 | L160: =IF(F160="Current ASP",IF(ISERROR(VLOOKUP(A160,#REF!,3,FALSE)),1,1-VLOOKUP(A160,#REF!,3,FALSE)),0) -> 1 | M160: 2188.862634 | N160: 0 | O160: 2188.862634 | P160: 0 | Q160: 475.022913 | R160: 0 | S160: 475.022913 | T160: 0 | U160: 0 | V160: 2663.885547 | W160: 0 | X160: 0 | Y160: 0
A161: 503 | B161: Calgary | C161: Developed | D161: COACH HILL | E161: Greenfield | F161: Current ASP | G161: 26.24962769 | H161: 26.24962769 | I161: 0 | J161: 1 | K161: 0 | L161: =IF(F161="Current ASP",IF(ISERROR(VLOOKUP(A161,#REF!,3,FALSE)),1,1-VLOOKUP(A161,#REF!,3,FALSE)),0) -> 1 | M161: 799.1768723 | N161: 0 | O161: 799.1768723 | P161: 0 | Q161: 79.74660321 | R161: 0 | S161: 79.74660321 | T161: 0 | U161: 0 | V161: 878.9234755 | W161: 0 | X161: 0 | Y161: 0
A162: 504 | B162: Calgary | C162: Developed | D162: COACH HILL | E162: Greenfield | F162: Current ASP | G162: 63.28111757 | H162: 63.28111757 | I162: 0 | J162: 1 | K162: 0 | L162: =IF(F162="Current ASP",IF(ISERROR(VLOOKUP(A162,#REF!,3,FALSE)),1,1-VLOOKUP(A162,#REF!,3,FALSE)),0) -> 1 | M162: 2690.096043 | N162: 0 | O162: 2690.096043 | P162: 0 | Q162: 343.5135882 | R162: 0 | S162: 343.5135882 | T162: 0 | U162: 0 | V162: 3033.609631 | W162: 0 | X162: 0 | Y162: 0
A163: 505 | B163: Calgary | C163: Developed | D163: STRATHCONA PARK | E163: Greenfield | F163: Current ASP | G163: 13.28885467 | H163: 13.28885467 | I163: 0 | J163: 1 | K163: 0 | L163: =IF(F163="Current ASP",IF(ISERROR(VLOOKUP(A163,#REF!,3,FALSE)),1,1-VLOOKUP(A163,#REF!,3,FALSE)),0) -> 1 | M163: 294.7166403 | N163: 0 | O163: 294.7166403 | P163: 0 | Q163: 353.7378752 | R163: 0 | S163: 353.7378752 | T163: 0 | U163: 0 | V163: 648.4545155 | W163: 0 | X163: 0 | Y163: 0
A164: 506 | B164: Calgary | C164: Developed | D164: STRATHCONA PARK | E164: Greenfield | F164: Current ASP | G164: 38.27889907 | H164: 38.27889907 | I164: 0 | J164: 1 | K164: 0 | L164: =IF(F164="Current ASP",IF(ISERROR(VLOOKUP(A164,#REF!,3,FALSE)),1,1-VLOOKUP(A164,#REF!,3,FALSE)),0) -> 1 | M164: 1469.280767 | N164: 0 | O164: 1469.280767 | P164: 0 | Q164: 240.6582255 | R164: 0 | S164: 240.6582255 | T164: 0 | U164: 0 | V164: 1709.938992 | W164: 0 | X164: 0 | Y164: 0
A165: 507 | B165: Calgary | C165: Developed | D165: STRATHCONA PARK | E165: Greenfield | F165: Current ASP | G165: 69.92959046 | H165: 69.92959046 | I165: 0 | J165: 1 | K165: 0 | L165: =IF(F165="Current ASP",IF(ISERROR(VLOOKUP(A165,#REF!,3,FALSE)),1,1-VLOOKUP(A165,#REF!,3,FALSE)),0) -> 1 | M165: 2106.040805 | N165: 0 | O165: 2106.040805 | P165: 0 | Q165: 289.1742005 | R165: 0 | S165: 289.1742005 | T165: 0 | U165: 0 | V165: 2395.215005 | W165: 0 | X165: 0 | Y165: 0
A166: 508 | B166: Calgary | C166: Developed | D166: STRATHCONA PARK | E166: Greenfield | F166: Current ASP | G166: 24.93995179 | H166: 24.93995179 | I166: 0 | J166: 1 | K166: 0 | L166: =IF(F166="Current ASP",IF(ISERROR(VLOOKUP(A166,#REF!,3,FALSE)),1,1-VLOOKUP(A166,#REF!,3,FALSE)),0) -> 1 | M166: 1004.618034 | N166: 0 | O166: 1004.618034 | P166: 0 | Q166: 87.66921844 | R166: 0 | S166: 87.66921844 | T166: 0 | U166: 0 | V166: 1092.287253 | W166: 0 | X166: 0 | Y166: 0
A167: 509 | B167: Calgary | C167: Developed | D167: CHRISTIE PARK | E167: Greenfield | F167: Current ASP | G167: 39.90070929 | H167: 39.90070929 | I167: 0 | J167: 1 | K167: 0 | L167: =IF(F167="Current ASP",IF(ISERROR(VLOOKUP(A167,#REF!,3,FALSE)),1,1-VLOOKUP(A167,#REF!,3,FALSE)),0) -> 1 | M167: 1334.829744 | N167: 0 | O167: 1334.829744 | P167: 0 | Q167: 110.9070023 | R167: 0 | S167: 110.9070023 | T167: 0 | U167: 0 | V167: 1445.736747 | W167: 0 | X167: 0 | Y167: 0
A168: 510 | B168: Calgary | C168: Developed | D168: GLAMORGAN | E168: Established | F168: EA | G168: 28.28702335 | H168: 0 | I168: 0 | J168: 0 | K168: 0 | L168: =IF(F168="Current ASP",IF(ISERROR(VLOOKUP(A168,#REF!,3,FALSE)),1,1-VLOOKUP(A168,#REF!,3,FALSE)),0) -> 0 | M168: 1838.96629 | N168: 1838.96629 | O168: 0 | P168: 0 | Q168: 787.314416 | R168: 787.314416 | S168: 0 | T168: 0 | U168: 2626.280706 | V168: 0 | W168: 0 | X168: 0 | Y168: 0
A169: 511 | B169: Calgary | C169: Developed | D169: GLENBROOK | E169: Established | F169: EA | G169: 4.175311988 | H169: 0 | I169: 0 | J169: 0 | K169: 0 | L169: =IF(F169="Current ASP",IF(ISERROR(VLOOKUP(A169,#REF!,3,FALSE)),1,1-VLOOKUP(A169,#REF!,3,FALSE)),0) -> 0 | M169: 0 | N169: 0 | O169: 0 | P169: 0 | Q169: 328.2494065 | R169: 328.2494065 | S169: 0 | T169: 0 | U169: 328.2494065 | V169: 0 | W169: 0 | X169: 0 | Y169: 0
A170: 512 | B170: Calgary | C170: Developed | D170: SIGNAL HILL | E170: Greenfield | F170: Current ASP | G170: 31.37703863 | H170: 31.37703863 | I170: 0 | J170: 1 | K170: 0 | L170: =IF(F170="Current ASP",IF(ISERROR(VLOOKUP(A170,#REF!,3,FALSE)),1,1-VLOOKUP(A170,#REF!,3,FALSE)),0) -> 1 | M170: 1338.468024 | N170: 0 | O170: 1338.468024 | P170: 0 | Q170: 351.1064928 | R170: 0 | S170: 351.1064928 | T170: 0 | U170: 0 | V170: 1689.574517 | W170: 0 | X170: 0 | Y170: 0
A171: 513 | B171: Calgary | C171: Developed | D171: SIGNAL HILL | E171: Greenfield | F171: Current ASP | G171: 41.36764428 | H171: 41.36764428 | I171: 0 | J171: 1 | K171: 0 | L171: =IF(F171="Current ASP",IF(ISERROR(VLOOKUP(A171,#REF!,3,FALSE)),1,1-VLOOKUP(A171,#REF!,3,FALSE)),0) -> 1 | M171: 1657.512198 | N171: 0 | O171: 1657.512198 | P171: 0 | Q171: 176.2658259 | R171: 0 | S171: 176.2658259 | T171: 0 | U171: 0 | V171: 1833.778024 | W171: 0 | X171: 0 | Y171: 0
A172: 514 | B172: Calgary | C172: Developed | D172: SIGNAL HILL | E172: Greenfield | F172: Current ASP | G172: 98.30836161 | H172: 98.30836161 | I172: 0 | J172: 1 | K172: 0 | L172: =IF(F172="Current ASP",IF(ISERROR(VLOOKUP(A172,#REF!,3,FALSE)),1,1-VLOOKUP(A172,#REF!,3,FALSE)),0) -> 1 | M172: 3717.301852 | N172: 0 | O172: 3717.301852 | P172: 0 | Q172: 227.7337698 | R172: 0 | S172: 227.7337698 | T172: 0 | U172: 0 | V172: 3945.035622 | W172: 0 | X172: 0 | Y172: 0
A173: 515 | B173: Calgary | C173: Developed | D173: SIGNAL HILL | E173: Greenfield | F173: Current ASP | G173: 24.38956659 | H173: 24.38956659 | I173: 0 | J173: 1 | K173: 0 | L173: =IF(F173="Current ASP",IF(ISERROR(VLOOKUP(A173,#REF!,3,FALSE)),1,1-VLOOKUP(A173,#REF!,3,FALSE)),0) -> 1 | M173: 0 | N173: 0 | O173: 0 | P173: 0 | Q173: 2227.40737 | R173: 0 | S173: 2227.40737 | T173: 0 | U173: 0 | V173: 2227.40737 | W173: 0 | X173: 0 | Y173: 0
A174: 516 | B174: Calgary | C174: Developed | D174: SIGNAL HILL | E174: Greenfield | F174: Current ASP | G174: 63.53949296 | H174: 63.53949296 | I174: 0 | J174: 1 | K174: 0 | L174: =IF(F174="Current ASP",IF(ISERROR(VLOOKUP(A174,#REF!,3,FALSE)),1,1-VLOOKUP(A174,#REF!,3,FALSE)),0) -> 1 | M174: 2281.364939 | N174: 0 | O174: 2281.364939 | P174: 0 | Q174: 228.9661752 | R174: 0 | S174: 228.9661752 | T174: 0 | U174: 0 | V174: 2510.331114 | W174: 0 | X174: 0 | Y174: 0
A175: 517 | B175: Calgary | C175: Developed | D175: SIGNAL HILL | E175: Greenfield | F175: Current ASP | G175: 64.59120489 | H175: 64.59120489 | I175: 0 | J175: 1 | K175: 0 | L175: =IF(F175="Current ASP",IF(ISERROR(VLOOKUP(A175,#REF!,3,FALSE)),1,1-VLOOKUP(A175,#REF!,3,FALSE)),0) -> 1 | M175: 3152.607559 | N175: 0 | O175: 3152.607559 | P175: 0 | Q175: 379.9892252 | R175: 0 | S175: 379.9892252 | T175: 0 | U175: 0 | V175: 3532.596784 | W175: 0 | X175: 0 | Y175: 0
A176: 518 | B176: Calgary | C176: Developed | D176: SIGNAL HILL | E176: Greenfield | F176: Current ASP | G176: 14.99658912 | H176: 14.99658912 | I176: 0 | J176: 1 | K176: 0 | L176: =IF(F176="Current ASP",IF(ISERROR(VLOOKUP(A176,#REF!,3,FALSE)),1,1-VLOOKUP(A176,#REF!,3,FALSE)),0) -> 1 | M176: 0 | N176: 0 | O176: 0 | P176: 0 | Q176: 6001.386505 | R176: 0 | S176: 6001.386505 | T176: 0 | U176: 0 | V176: 6001.386505 | W176: 0 | X176: 0 | Y176: 0
A177: 520 | B177: Calgary | C177: Developed | D177: GLAMORGAN | E177: Established | F177: EA | G177: 51.00315547 | H177: 0 | I177: 0 | J177: 0 | K177: 0 | L177: =IF(F177="Current ASP",IF(ISERROR(VLOOKUP(A177,#REF!,3,FALSE)),1,1-VLOOKUP(A177,#REF!,3,FALSE)),0) -> 0 | M177: 2030.672661 | N177: 2030.672661 | O177: 0 | P177: 0 | Q177: 357.7454693 | R177: 357.7454693 | S177: 0 | T177: 0 | U177: 2388.41813 | V177: 0 | W177: 0 | X177: 0 | Y177: 0
A178: 521 | B178: Calgary | C178: Developed | D178: GLAMORGAN | E178: Established | F178: EA | G178: 29.5076716 | H178: 0 | I178: 0 | J178: 0 | K178: 0 | L178: =IF(F178="Current ASP",IF(ISERROR(VLOOKUP(A178,#REF!,3,FALSE)),1,1-VLOOKUP(A178,#REF!,3,FALSE)),0) -> 0 | M178: 1323.245838 | N178: 1323.245838 | O178: 0 | P178: 0 | Q178: 221.7016167 | R178: 221.7016167 | S178: 0 | T178: 0 | U178: 1544.947454 | V178: 0 | W178: 0 | X178: 0 | Y178: 0
A179: 522 | B179: Calgary | C179: Developed | D179: GLAMORGAN | E179: Established | F179: EA | G179: 74.20651247 | H179: 0 | I179: 0 | J179: 0 | K179: 0 | L179: =IF(F179="Current ASP",IF(ISERROR(VLOOKUP(A179,#REF!,3,FALSE)),1,1-VLOOKUP(A179,#REF!,3,FALSE)),0) -> 0 | M179: 1993.376369 | N179: 1993.376369 | O179: 0 | P179: 0 | Q179: 884.4351935 | R179: 884.4351935 | S179: 0 | T179: 0 | U179: 2877.811562 | V179: 0 | W179: 0 | X179: 0 | Y179: 0
A180: 523 | B180: Calgary | C180: Developed | D180: GLENBROOK | E180: Established | F180: EA | G180: 10.56866051 | H180: 0 | I180: 0 | J180: 0 | K180: 0 | L180: =IF(F180="Current ASP",IF(ISERROR(VLOOKUP(A180,#REF!,3,FALSE)),1,1-VLOOKUP(A180,#REF!,3,FALSE)),0) -> 0 | M180: 0 | N180: 0 | O180: 0 | P180: 0 | Q180: 738.5951074 | R180: 738.5951074 | S180: 0 | T180: 0 | U180: 738.5951074 | V180: 0 | W180: 0 | X180: 0 | Y180: 0
A181: 524 | B181: Calgary | C181: Developed | D181: GLENBROOK | E181: Established | F181: EA | G181: 71.59136 | H181: 0 | I181: 0 | J181: 0 | K181: 0 | L181: =IF(F181="Current ASP",IF(ISERROR(VLOOKUP(A181,#REF!,3,FALSE)),1,1-VLOOKUP(A181,#REF!,3,FALSE)),0) -> 0 | M181: 3050.397247 | N181: 3050.397247 | O181: 0 | P181: 0 | Q181: 505.4493821 | R181: 505.4493821 | S181: 0 | T181: 0 | U181: 3555.846629 | V181: 0 | W181: 0 | X181: 0 | Y181: 0
A182: 525 | B182: Calgary | C182: Developed | D182: GLENBROOK | E182: Established | F182: EA | G182: 87.2944497 | H182: 0 | I182: 0 | J182: 0 | K182: 0 | L182: =IF(F182="Current ASP",IF(ISERROR(VLOOKUP(A182,#REF!,3,FALSE)),1,1-VLOOKUP(A182,#REF!,3,FALSE)),0) -> 0 | M182: 3749.941707 | N182: 3749.941707 | O182: 0 | P182: 0 | Q182: 616.5536433 | R182: 616.5536433 | S182: 0 | T182: 0 | U182: 4366.495351 | V182: 0 | W182: 0 | X182: 0 | Y182: 0
A183: 526 | B183: Calgary | C183: Developed | D183: GLENDALE | E183: Established | F183: EA | G183: 32.15886819 | H183: 0 | I183: 0 | J183: 0 | K183: 0 | L183: =IF(F183="Current ASP",IF(ISERROR(VLOOKUP(A183,#REF!,3,FALSE)),1,1-VLOOKUP(A183,#REF!,3,FALSE)),0) -> 0 | M183: 729.8259403 | N183: 729.8259403 | O183: 0 | P183: 0 | Q183: 121.5593345 | R183: 121.5593345 | S183: 0 | T183: 0 | U183: 851.3852749 | V183: 0 | W183: 0 | X183: 0 | Y183: 0
A184: 527 | B184: Calgary | C184: Developed | D184: GLENDALE | E184: Established | F184: EA | G184: 32.44620554 | H184: 0 | I184: 0 | J184: 0 | K184: 0 | L184: =IF(F184="Current ASP",IF(ISERROR(VLOOKUP(A184,#REF!,3,FALSE)),1,1-VLOOKUP(A184,#REF!,3,FALSE)),0) -> 0 | M184: 453.9066515 | N184: 453.9066515 | O184: 0 | P184: 0 | Q184: 281.5631032 | R184: 281.5631032 | S184: 0 | T184: 0 | U184: 735.4697548 | V184: 0 | W184: 0 | X184: 0 | Y184: 0
A185: 528 | B185: Calgary | C185: Developed | D185: WESTGATE | E185: Established | F185: EA | G185: 70.66109994 | H185: 0 | I185: 0 | J185: 0 | K185: 0 | L185: =IF(F185="Current ASP",IF(ISERROR(VLOOKUP(A185,#REF!,3,FALSE)),1,1-VLOOKUP(A185,#REF!,3,FALSE)),0) -> 0 | M185: 2011.387287 | N185: 2011.387287 | O185: 0 | P185: 0 | Q185: 403.845007 | R185: 403.845007 | S185: 0 | T185: 0 | U185: 2415.232294 | V185: 0 | W185: 0 | X185: 0 | Y185: 0
A186: 529 | B186: Calgary | C186: Developed | D186: ROSSCARROCK | E186: Established | F186: EA | G186: 25.16336886 | H186: 0 | I186: 0 | J186: 0 | K186: 0 | L186: =IF(F186="Current ASP",IF(ISERROR(VLOOKUP(A186,#REF!,3,FALSE)),1,1-VLOOKUP(A186,#REF!,3,FALSE)),0) -> 0 | M186: 983.2888775 | N186: 983.2888775 | O186: 0 | P186: 0 | Q186: 442.6736106 | R186: 442.6736106 | S186: 0 | T186: 0 | U186: 1425.962488 | V186: 0 | W186: 0 | X186: 0 | Y186: 0
A187: 530 | B187: Calgary | C187: Developed | D187: WILDWOOD | E187: Established | F187: EA | G187: 50.96451606 | H187: 0 | I187: 0 | J187: 0 | K187: 0 | L187: =IF(F187="Current ASP",IF(ISERROR(VLOOKUP(A187,#REF!,3,FALSE)),1,1-VLOOKUP(A187,#REF!,3,FALSE)),0) -> 0 | M187: 1353.007285 | N187: 1353.007285 | O187: 0 | P187: 0 | Q187: 251.9501199 | R187: 251.9501199 | S187: 0 | T187: 0 | U187: 1604.957405 | V187: 0 | W187: 0 | X187: 0 | Y187: 0
A188: 531 | B188: Calgary | C188: Developed | D188: WILDWOOD | E188: Established | F188: EA | G188: 53.61259805 | H188: 0 | I188: 0 | J188: 0 | K188: 0 | L188: =IF(F188="Current ASP",IF(ISERROR(VLOOKUP(A188,#REF!,3,FALSE)),1,1-VLOOKUP(A188,#REF!,3,FALSE)),0) -> 0 | M188: 1552.102594 | N188: 1552.102594 | O188: 0 | P188: 0 | Q188: 257.7110844 | R188: 257.7110844 | S188: 0 | T188: 0 | U188: 1809.813679 | V188: 0 | W188: 0 | X188: 0 | Y188: 0
A189: 532 | B189: Calgary | C189: Developed | D189: WILDWOOD | E189: Established | F189: EA | G189: 47.50000957 | H189: 0 | I189: 0 | J189: 0 | K189: 0 | L189: =IF(F189="Current ASP",IF(ISERROR(VLOOKUP(A189,#REF!,3,FALSE)),1,1-VLOOKUP(A189,#REF!,3,FALSE)),0) -> 0 | M189: 11.49667538 | N189: 11.49667538 | O189: 0 | P189: 0 | Q189: 30.02593788 | R189: 30.02593788 | S189: 0 | T189: 0 | U189: 41.52261326 | V189: 0 | W189: 0 | X189: 0 | Y189: 0
A190: 533 | B190: Calgary | C190: Developed | D190: SPRUCE CLIFF | E190: Established | F190: EA | G190: 65.29593387 | H190: 0 | I190: 0 | J190: 0 | K190: 0 | L190: =IF(F190="Current ASP",IF(ISERROR(VLOOKUP(A190,#REF!,3,FALSE)),1,1-VLOOKUP(A190,#REF!,3,FALSE)),0) -> 0 | M190: 3383.863316 | N190: 3383.863316 | O190: 0 | P190: 0 | Q190: 1039.08203 | R190: 1039.08203 | S190: 0 | T190: 0 | U190: 4422.945346 | V190: 0 | W190: 0 | X190: 0 | Y190: 0
A191: 534 | B191: Calgary | C191: Developed | D191: SHAGANAPPI | E191: Established | F191: EA | G191: 55.35859486 | H191: 0 | I191: 0 | J191: 0 | K191: 0 | L191: =IF(F191="Current ASP",IF(ISERROR(VLOOKUP(A191,#REF!,3,FALSE)),1,1-VLOOKUP(A191,#REF!,3,FALSE)),0) -> 0 | M191: 0 | N191: 0 | O191: 0 | P191: 0 | Q191: 48.93929365 | R191: 48.93929365 | S191: 0 | T191: 0 | U191: 48.93929365 | V191: 0 | W191: 0 | X191: 0 | Y191: 0
A192: 535 | B192: Calgary | C192: Developed | D192: SCARBORO/ SUNALTA WEST | E192: Established | F192: EA | G192: 7.556386575 | H192: 0 | I192: 0 | J192: 0 | K192: 0 | L192: =IF(F192="Current ASP",IF(ISERROR(VLOOKUP(A192,#REF!,3,FALSE)),1,1-VLOOKUP(A192,#REF!,3,FALSE)),0) -> 0 | M192: 143.4663133 | N192: 143.4663133 | O192: 0 | P192: 0 | Q192: 45.57422392 | R192: 45.57422392 | S192: 0 | T192: 0 | U192: 189.0405372 | V192: 0 | W192: 0 | X192: 0 | Y192: 0
A193: 536 | B193: Calgary | C193: Developed | D193: SHAGANAPPI | E193: Established | F193: EA | G193: 8.234353253 | H193: 0 | I193: 0 | J193: 0 | K193: 0 | L193: =IF(F193="Current ASP",IF(ISERROR(VLOOKUP(A193,#REF!,3,FALSE)),1,1-VLOOKUP(A193,#REF!,3,FALSE)),0) -> 0 | M193: 43.86712797 | N193: 43.86712797 | O193: 0 | P193: 0 | Q193: 277.725046 | R193: 277.725046 | S193: 0 | T193: 0 | U193: 321.592174 | V193: 0 | W193: 0 | X193: 0 | Y193: 0
A194: 537 | B194: Calgary | C194: Developed | D194: SPRUCE CLIFF | E194: Established | F194: EA | G194: 8.48067415 | H194: 0 | I194: 0 | J194: 0 | K194: 0 | L194: =IF(F194="Current ASP",IF(ISERROR(VLOOKUP(A194,#REF!,3,FALSE)),1,1-VLOOKUP(A194,#REF!,3,FALSE)),0) -> 0 | M194: 2834.658682 | N194: 2834.658682 | O194: 0 | P194: 0 | Q194: 144.5923581 | R194: 144.5923581 | S194: 0 | T194: 0 | U194: 2979.25104 | V194: 0 | W194: 0 | X194: 0 | Y194: 0
A195: 538 | B195: Calgary | C195: Developed | D195: ROSSCARROCK | E195: Established | F195: EA | G195: 23.5705209 | H195: 0 | I195: 0 | J195: 0 | K195: 0 | L195: =IF(F195="Current ASP",IF(ISERROR(VLOOKUP(A195,#REF!,3,FALSE)),1,1-VLOOKUP(A195,#REF!,3,FALSE)),0) -> 0 | M195: 115.3136366 | N195: 115.3136366 | O195: 0 | P195: 0 | Q195: 10931.19902 | R195: 10931.19902 | S195: 0 | T195: 0 | U195: 11046.51266 | V195: 0 | W195: 0 | X195: 0 | Y195: 0
A196: 539 | B196: Calgary | C196: Developed | D196: SHAGANAPPI | E196: Established | F196: EA | G196: 33.16449904 | H196: 0 | I196: 0 | J196: 0 | K196: 0 | L196: =IF(F196="Current ASP",IF(ISERROR(VLOOKUP(A196,#REF!,3,FALSE)),1,1-VLOOKUP(A196,#REF!,3,FALSE)),0) -> 0 | M196: 1273.86694 | N196: 1273.86694 | O196: 0 | P196: 0 | Q196: 347.7662095 | R196: 347.7662095 | S196: 0 | T196: 0 | U196: 1621.633149 | V196: 0 | W196: 0 | X196: 0 | Y196: 0
A197: 540 | B197: Calgary | C197: Developed | D197: SCARBORO/ SUNALTA WEST | E197: Established | F197: EA | G197: 13.88080466 | H197: 0 | I197: 0 | J197: 0 | K197: 0 | L197: =IF(F197="Current ASP",IF(ISERROR(VLOOKUP(A197,#REF!,3,FALSE)),1,1-VLOOKUP(A197,#REF!,3,FALSE)),0) -> 0 | M197: 316.6139554 | N197: 316.6139554 | O197: 0 | P197: 0 | Q197: 48.76200853 | R197: 48.76200853 | S197: 0 | T197: 0 | U197: 365.375964 | V197: 0 | W197: 0 | X197: 0 | Y197: 0
A198: 541 | B198: Calgary | C198: Developed | D198: KILLARNEY/GLENGARRY | E198: Established | F198: EA | G198: 44.10723096 | H198: 0 | I198: 0 | J198: 0 | K198: 0 | L198: =IF(F198="Current ASP",IF(ISERROR(VLOOKUP(A198,#REF!,3,FALSE)),1,1-VLOOKUP(A198,#REF!,3,FALSE)),0) -> 0 | M198: 2731.250215 | N198: 2731.250215 | O198: 0 | P198: 0 | Q198: 557.9818559 | R198: 557.9818559 | S198: 0 | T198: 0 | U198: 3289.232071 | V198: 0 | W198: 0 | X198: 0 | Y198: 0
A199: 542 | B199: Calgary | C199: Developed | D199: KILLARNEY/GLENGARRY | E199: Established | F199: EA | G199: 42.20471002 | H199: 0 | I199: 0 | J199: 0 | K199: 0 | L199: =IF(F199="Current ASP",IF(ISERROR(VLOOKUP(A199,#REF!,3,FALSE)),1,1-VLOOKUP(A199,#REF!,3,FALSE)),0) -> 0 | M199: 2254.342876 | N199: 2254.342876 | O199: 0 | P199: 0 | Q199: 285.1011884 | R199: 285.1011884 | S199: 0 | T199: 0 | U199: 2539.444065 | V199: 0 | W199: 0 | X199: 0 | Y199: 0
A200: 543 | B200: Calgary | C200: Developed | D200: KILLARNEY/GLENGARRY | E200: Established | F200: EA | G200: 52.94401192 | H200: 0 | I200: 0 | J200: 0 | K200: 0 | L200: =IF(F200="Current ASP",IF(ISERROR(VLOOKUP(A200,#REF!,3,FALSE)),1,1-VLOOKUP(A200,#REF!,3,FALSE)),0) -> 0 | M200: 1891.505905 | N200: 1891.505905 | O200: 0 | P200: 0 | Q200: 561.2537856 | R200: 561.2537856 | S200: 0 | T200: 0 | U200: 2452.75969 | V200: 0 | W200: 0 | X200: 0 | Y200: 0
A201: 544 | B201: Calgary | C201: Developed | D201: RICHMOND | E201: Established | F201: EA | G201: 29.83764995 | H201: 0 | I201: 0 | J201: 0 | K201: 0 | L201: =IF(F201="Current ASP",IF(ISERROR(VLOOKUP(A201,#REF!,3,FALSE)),1,1-VLOOKUP(A201,#REF!,3,FALSE)),0) -> 0 | M201: 613.9399483 | N201: 613.9399483 | O201: 0 | P201: 0 | Q201: 650.846923 | R201: 650.846923 | S201: 0 | T201: 0 | U201: 1264.786871 | V201: 0 | W201: 0 | X201: 0 | Y201: 0
A202: 545 | B202: Calgary | C202: Developed | D202: RICHMOND | E202: Established | F202: EA | G202: 26.59100768 | H202: 0 | I202: 0 | J202: =IF(H202>0,H202/G202,0) -> 0 | K202: =IF(E202="Greenfield",1-J202,0) -> 0 | L202: =IF(F202="Current ASP",IF(ISERROR(VLOOKUP(A202,#REF!,3,FALSE)),1,1-VLOOKUP(A202,#REF!,3,FALSE)),0) -> 0 | M202: 167.167096 | N202: =IF($E202="Established",$M202,0) -> 167.167096 | O202: =IF($E202="Greenfield",$M202*J202,0) -> 0 | P202: =IF($E202="Greenfield",$M202*K202,0) -> 0 | Q202: 122.9620668 | R202: =IF($E202="Established",$Q202,0) -> 122.9620668 | S202: =IF($E202="Greenfield",$Q202*J202,0) -> 0 | T202: =IF($E202="Greenfield",$Q202*K202,0) -> 0 | U202: =N202+R202 -> 290.1291628 | V202: =O202+S202 -> 0 | W202: =P202+T202 -> 0 | X202: =L202*M202*K202 -> 0 | Y202: =Q202*L202*K202 -> 0
A203: 546 | B203: Calgary | C203: Developed | D203: CURRIE BARRACKS | E203: Established | F203: EA | G203: 83.34266378 | H203: 0 | I203: 0 | J203: 0 | K203: 0 | L203: =IF(F203="Current ASP",IF(ISERROR(VLOOKUP(A203,#REF!,3,FALSE)),1,1-VLOOKUP(A203,#REF!,3,FALSE)),0) -> 0 | M203: 1383.960718 | N203: 1383.960718 | O203: 0 | P203: 0 | Q203: 3907.033275 | R203: 3907.033275 | S203: 0 | T203: 0 | U203: 5290.993993 | V203: 0 | W203: 0 | X203: 0 | Y203: 0
A204: 547 | B204: Calgary | C204: Developed | D204: RUTLAND PARK | E204: Established | F204: EA | G204: 63.61290845 | H204: 0 | I204: 0 | J204: 0 | K204: 0 | L204: =IF(F204="Current ASP",IF(ISERROR(VLOOKUP(A204,#REF!,3,FALSE)),1,1-VLOOKUP(A204,#REF!,3,FALSE)),0) -> 0 | M204: 2269.533249 | N204: 2269.533249 | O204: 0 | P204: 0 | Q204: 434.2697522 | R204: 434.2697522 | S204: 0 | T204: 0 | U204: 2703.803001 | V204: 0 | W204: 0 | X204: 0 | Y204: 0
... 1205 more rows

Sheet Tab 6 - Benefit Calculation
A1: Transportation - Benefit Allocation
A2: This tab provides details on the benefit methodology. It shows the basis of the calculation and assumptions used in assessing benefit allocation. Detailed data supporting the calculation is shown on Tab 5.
A6: Per Tab 4, the infrastructure need (number of transit buses) is based on applying the population-to-fleet ratio to the forecast population of unlevied lands in approved greenfield Area Structure Plans. Benefit allocation considers that these additional buses are needed to provide transit service to these residents while maintaining citywide levels of service. 100% of the benefit of this expanded fleet is allocated to unlevied growth.
A13: Summary Data
A14: Benefit Rates for unlevied lands as at January 1, 2024:
A15: Greenfield | B15: 1

Sheet Tab 7 - Financial Model
A1: Transit Bus OSL Financial Rate Model
A2: Last Updated: July 19, 2023 | J2: 0 | K2: 1 | L2: 2 | M2: 3 | N2: 4 | O2: 5 | P2: 6 | Q2: 7 | R2: 8 | S2: 9 | T2: 10 | U2: 11 | V2: 12 | W2: 13 | X2: 14 | Y2: 15 | Z2: 16 | AA2: 17 | AB2: 18 | AC2: 19 | AD2: 20 | AE2: 21 | AF2: 22 | AG2: 23 | AH2: 24 | AI2: 25 | AJ2: 26 | AK2: 27 | AL2: 28 | AM2: 29 | AN2: 30 | AO2: 31 | AP2: 32 | AQ2: 33 | AR2: 34 | AS2: 35
A3: Transit Bus Levy Rate | C3: 19597.03877 | D3: Run Macro <CTRL> + g | H3: End Value (CELL BS25): | I3: =AS38 -> 0 | J3: 2023 | K3: 2024 | L3: 2025 | M3: 2026 | N3: 2027 | O3: 2028 | P3: 2029 | Q3: 2030 | R3: 2031 | S3: 2032 | T3: 2033 | U3: 2034 | V3: 2035 | W3: 2036 | X3: 2037 | Y3: 2038 | Z3: 2039 | AA3: 2040 | AB3: 2041 | AC3: 2042 | AD3: 2043 | AE3: 2044 | AF3: 2045 | AG3: 2046 | AH3: 2047 | AI3: 2048 | AJ3: 2049 | AK3: 2050 | AL3: 2051 | AM3: 2052 | AN3: 2053 | AO3: 2054 | AP3: 2055 | AQ3: 2056 | AR3: 2057 | AS3: 2058
B4: How to calculate the levy rate: Once all variables have been set, the levy rate can be recalculated by entering <CTRL> + g. This runs Excel's Goal Seek function (Data --> What-If Analysis --> Goal Seek) to calculate the levy rate in cell C3. The model applies the value in cell C3 to the land absorption in row 25, to ensure that contributions from development agreements (in row 30) plus earned investment income offset total spending and ensure that the ending balance is zero (cell AS38), i.e., all revenues and spending have balanced. Variables impacting this calculation include: annual expenditures, land absorption rate (row 25), payment schedule (cells I32 to I35), and the escalation and discount rates (cells E21 and E22).
A10: Section 1: Expenditures
B11: Section 1 below shows periodic expenditures. The assumptions driving expenditures are that 20 buses will be purchased whenever the transit levy fund has sufficient balance, and any remaining buses will be purchased in the final year to ensure that 225 are purchased over the model period.
A15: # | B15: Project name | C15: Cost per bus | D15: # Greenfield buses | E15: Leviable cost | F15: Buses per purchase | G15: # Purchases before final year | H15: # Buses purchased before final year | I15: Additional buses to purchase at end of period
C16: Lookup | D16: Lookup | E16: Calc | F16: Assumption | G16: Calc | H16: Calc | I16: Calc
A17: 1 | B17: Transit buses | C17: =VLOOKUP(B17,'Tab 4 - Infrastructure'!A25:C25,3,FALSE) -> 732000 | D17: ='Tab 4 - Infrastructure'!F25 -> 237 | E17: =D17*C17 -> 173484000 | F17: 20 | G17: =COUNTIF(K17:AR17,">0") -> 11 | H17: =G17*F17 -> 220 | I17: =D17-H17 -> 17 | K17: =IF(J38>($F17*$C17)*(1+$E$21)^K$2,($F17*$C17)*(1+$E$21)^K$2,0) -> 0 | L17: 0 | M17: 0 | N17: 0 | O17: 0 | P17: 0 | Q17: 18727181.67 | R17: 0 | S17: 0 | T17: 20811344.75 | U17: 0 | V17: 22328109.68 | W17: 0 | X17: 0 | Y17: 24813022.93 | Z17: 0 | AA17: 0 | AB17: 27574484.17 | AC17: 0 | AD17: 29584157.8 | AE17: 0 | AF17: 0 | AG17: 32876602.47 | AH17: 0 | AI17: 35272703.18 | AJ17: 0 | AK17: 0 | AL17: 39198230.63 | AM17: 0 | AN17: 0 | AO17: 43560633.18 | AP17: 0 | AQ17: 0 | AR17: 48408531.01 | AS17: =($I17*$C17)*(1+$E$21)^AS$2 -> 42620322.96
B20: Rates used to calculate future value and present value of leviable cost:
B21: Table: Escalation and Discount rates. Source: City Treasury, March 2023 | D21: Escalation rate | E21: 0.0358 | H21: Future value of unlevied cost | I21: =SUM(L21:AS21) -> 385775324.4 | J21: =SUM(J17:J18) -> 0 | K21: 0 | L21: 0 | M21: 0 | N21: 0 | O21: 0 | P21: 0 | Q21: 18727181.67 | R21: 0 | S21: 0 | T21: 20811344.75 | U21: 0 | V21: 22328109.68 | W21: 0 | X21: 0 | Y21: 24813022.93 | Z21: 0 | AA21: 0 | AB21: 27574484.17 | AC21: 0 | AD21: 29584157.8 | AE21: 0 | AF21: 0 | AG21: 32876602.47 | AH21: 0 | AI21: 35272703.18 | AJ21: 0 | AK21: 0 | AL21: 39198230.63 | AM21: 0 | AN21: 0 | AO21: 43560633.18 | AP21: =SUM(AP17:AP18) -> 0 | AQ21: 0 | AR21: 48408531.01 | AS21: 42620322.96
D22: Discount rate | E22: 0.0429 | H22: Discounted value of unlevied cost | I22: =SUM(L22:AS22) -> 150241840.7 | J22: =(SUM(J17:J18))/((1+$E$22)^J2) -> 0 | K22: 0 | L22: 0 | M22: 0 | N22: 0 | O22: 0 | P22: 0 | Q22: 13956411.03 | R22: 0 | S22: 0 | T22: 13673303.98 | U22: 0 | V22: 13487763.66 | W22: 0 | X22: 0 | Y22: 13214163.17 | Z22: 0 | AA22: 0 | AB22: 12946112.68 | AC22: 0 | AD22: 12770440.01 | AE22: 0 | AF22: 0 | AG22: 12511390.49 | AH22: 0 | AI22: 12341616.79 | AJ22: 0 | AK22: 0 | AL22: 12091265.99 | AM22: 0 | AN22: 0 | AO22: 11845993.57 | AP22: 0 | AQ22: 0 | AR22: 11605696.53 | AS22: 9797682.805
A24: Section 2: Land absorption and yearly cash flows | AT24: Check (should be 0):
I25: Hectares that sign development agreements (DAs) | J25: 290 | K25: 309 | L25: 327 | M25: 321 | N25: 321 | O25: 318.480898 | P25: 315.9617959 | Q25: 313.4426939 | R25: 310.9235918 | S25: 308.4044898 | T25: 305.8853878 | U25: 303.3662857 | V25: 300.8471837 | W25: 298.3280816 | X25: 295.8089796 | Y25: 293.2898776 | Z25: 290.7707755 | AA25: 288.2516735 | AB25: 285.7325714 | AC25: 283.2134694 | AD25: 280.6943673 | AE25: 278.1752653 | AF25: 275.6561633 | AG25: 273.1370612 | AH25: 270.6179592 | AI25: 268.0988571 | AJ25: 265.5797551 | AK25: 263.0606531 | AL25: =260.541551020408-34.8 -> 225.741551 | AM25: =258.022448979592-34.8 -> 223.222449 | AN25: =255.503346938775-34.8 -> 220.7033469 | AO25: =252.984244897959-34.8 -> 218.1842449 | AP25: =250.465142857143-34.8 -> 215.6651429 | AT25: =E29-SUM(K25:AS25) -> -0.2445714286
D26: Year | E26: Unlevied hectares | I26: Cumulative hectares | K26: =SUM($K25:K25) -> 309 | L26: =SUM($K25:L25) -> 636 | M26: =SUM($K25:M25) -> 957 | N26: =SUM($K25:N25) -> 1278 | O26: =SUM($K25:O25) -> 1596.480898 | P26: =SUM($K25:P25) -> 1912.442694 | Q26: =SUM($K25:Q25) -> 2225.885388 | R26: =SUM($K25:R25) -> 2536.80898 | S26: =SUM($K25:S25) -> 2845.213469 | T26: =SUM($K25:T25) -> 3151.098857 | U26: =SUM($K25:U25) -> 3454.465143 | V26: =SUM($K25:V25) -> 3755.312327 | W26: =SUM($K25:W25) -> 4053.640408 | X26: =SUM($K25:X25) -> 4349.449388 | Y26: =SUM($K25:Y25) -> 4642.739265 | Z26: =SUM($K25:Z25) -> 4933.510041 | AA26: =SUM($K25:AA25) -> 5221.761714 | AB26: =SUM($K25:AB25) -> 5507.494286 | AC26: =SUM($K25:AC25) -> 5790.707755 | AD26: =SUM($K25:AD25) -> 6071.402122 | AE26: =SUM($K25:AE25) -> 6349.577388 | AF26: =SUM($K25:AF25) -> 6625.233551 | AG26: =SUM($K25:AG25) -> 6898.370612 | AH26: =SUM($K25:AH25) -> 7168.988571 | AI26: =SUM($K25:AI25) -> 7437.087429 | AJ26: =SUM($K25:AJ25) -> 7702.667184 | AK26: =SUM($K25:AK25) -> 7965.727837 | AL26: =SUM($K25:AL25) -> 8191.469388 | AM26: =SUM($K25:AM25) -> 8414.691837 | AN26: =SUM($K25:AN25) -> 8635.395184 | AO26: =SUM($K25:AO25) -> 8853.579429 | AP26: =SUM($K25:AP25) -> 9069.244571 | AQ26: =SUM($K25:AQ25) -> 9069.244571 | AR26: =SUM($K25:AR25) -> 9069.244571 | AS26: =SUM($K25:AS25) -> 9069.244571
B27: Unlevied hectares at Jan 1, 2023 | D27: Subtotal | E27: 9359
B28: Forecast hectares in executed development agreements | D28: 2023 | E28: 290
B29: Denominator: Unlevied hectares at Jan 1, 2024 | D29: Subtotal | E29: 9069 | G29: Yearly cash-flow analysis:
B30: Hectares in executed development agreements from 2023 to 2027 are per Corporate Economics Fall 2022 forecast. The remaining 12,643.1 hectares of unlevied land are assumed to be absorbed in a slowly decreasing trend, with approximately 2.54 hectares fewer per year. This starts from 318.5 hectares in 2028 and finishes with 197.6 hectares in 2076. | D30: 2024 | E30: 309 | H30: Contributions from signed DA's | I30: =SUM(K30:AS30) -> 351620250.8 | K30: =(($C$3*K25)*(1+$E$22)^J2) -> 6055484.98 | L30: 6683144.817 | M30: 6841964.542 | N30: 7135484.821 | O30: 7383197.922 | P30: 7639032.589 | Q30: 7903229.76 | R30: 8176036.096 | S30: 8457704.032 | T30: 8748491.819 | U30: 9048663.555 | V30: 9358489.214 | W30: 9678244.664 | X30: 10008211.67 | Y30: 10348677.91 | Z30: 10699936.95 | AA30: 11062288.19 | AB30: 11436036.91 | AC30: 11821494.11 | AD30: 12218976.55 | AE30: 12628806.59 | AF30: 13051312.11 | AG30: 13486826.43 | AH30: 13935688.11 | AI30: 14398240.83 | AJ30: 14874833.2 | AK30: 15365818.52 | AL30: 13751623.64 | AM30: 14181527.42 | AN30: 14623008.33 | AO30: 15076268.47 | AP30: 15541506 | AQ30: 0 | AR30: 0 | AS30: 0
D31: 2025 | E31: 327 | H31: Beginning account balance | K31: =J38 -> 0 | L31: =K38 -> 0 | M31: =L38 -> 0 | N31: 0 | O31: 6185375.133 | P31: 13277226 | Q31: 20835543.68 | R31: 9889049.756 | S31: 17854857.51 | T31: 26423720.73 | U31: 14372304.3 | V31: 23340288.22 | W31: 10173660.73 | X31: 19546257.75 | Y31: 29627549.59 | Z31: 15112538 | AA31: 25646708.9 | AB31: 36969840.52 | AC31: 20960546.88 | AD31: 32789204.93 | AE31: 15276698.11 | AF31: 27613408.36 | AG31: 40873088.74 | AH31: 21525812.25 | AI31: 35348964.08 | AJ31: 14167394.73 | AK31: 28551294.82 | AL31: 44010753.99 | AM31: 20566865.75 | AN31: 36643082.66 | AO31: 53910486.24 | AP31: 25774833.31 | AQ31: 41366294.84 | AR31: 58077580.75 | AS31: 26521869.39
D32: 2026 | E32: 321 | G32: Levy payment schedule after a DA is signed. | H32: Year 0 | I32: 0 | K32: =K30*$I$32 -> 0 | L32: 0 | M32: 0 | N32: 0 | O32: 0 | P32: 0 | Q32: 0 | R32: 0 | S32: 0 | T32: 0 | U32: 0 | V32: 0 | W32: 0 | X32: 0 | Y32: 0 | Z32: 0 | AA32: 0 | AB32: 0 | AC32: 0 | AD32: 0 | AE32: 0 | AF32: 0 | AG32: 0 | AH32: 0 | AI32: 0 | AJ32: 0 | AK32: 0 | AL32: 0 | AM32: 0 | AN32: 0 | AO32: 0 | AP32: 0 | AQ32: =AQ30*$I$32 -> 0 | AR32: 0 | AS32: 0
D33: 2027 | E33: 321 | H33: Year 1 | I33: 0 | L33: =K30*$I$33 -> 0 | M33: 0 | N33: 0 | O33: 0 | P33: 0 | Q33: 0 | R33: 0 | S33: 0 | T33: 0 | U33: 0 | V33: 0 | W33: 0 | X33: 0 | Y33: 0 | Z33: 0 | AA33: 0 | AB33: 0 | AC33: 0 | AD33: 0 | AE33: 0 | AF33: 0 | AG33: 0 | AH33: 0 | AI33: 0 | AJ33: 0 | AK33: 0 | AL33: 0 | AM33: 0 | AN33: 0 | AO33: 0 | AP33: 0 | AQ33: 0 | AR33: =AQ30*$I$33 -> 0 | AS33: 0
D34: 2028 | E34: 318.480898 | H34: Year 2 | I34: 0 | M34: =K30*$I$34 -> 0 | N34: 0 | O34: 0 | P34: 0 | Q34: 0 | R34: 0 | S34: 0 | T34: 0 | U34: 0 | V34: 0 | W34: 0 | X34: 0 | Y34: 0 | Z34: 0 | AA34: 0 | AB34: 0 | AC34: 0 | AD34: 0 | AE34: 0 | AF34: 0 | AG34: 0 | AH34: 0 | AI34: 0 | AJ34: 0 | AK34: 0 | AL34: 0 | AM34: 0 | AN34: 0 | AO34: 0 | AP34: =AN30*$I$34 -> 0 | AQ34: 0 | AR34: 0 | AS34: 0
D35: 2029 | E35: 315.9617959 | H35: Year 3 | I35: 1 | N35: =K30*$I$35 -> 6055484.98 | O35: 6683144.817 | P35: 6841964.542 | Q35: 7135484.821 | R35: 7383197.922 | S35: 7639032.589 | T35: 7903229.76 | U35: 8176036.096 | V35: 8457704.032 | W35: 8748491.819 | X35: 9048663.555 | Y35: 9358489.214 | Z35: 9678244.664 | AA35: 10008211.67 | AB35: 10348677.91 | AC35: 10699936.95 | AD35: 11062288.19 | AE35: 11436036.91 | AF35: 11821494.11 | AG35: 12218976.55 | AH35: 12628806.59 | AI35: 13051312.11 | AJ35: 13486826.43 | AK35: 13935688.11 | AL35: 14398240.83 | AM35: 14874833.2 | AN35: 15365818.52 | AO35: 13751623.64 | AP35: =AM30*$I$35 -> 14181527.42 | AQ35: 14623008.33 | AR35: 15076268.47 | AS35: 15541506
D36: 2030 | E36: 313.4426939 | H36: Investment income (interest expense) | I36: =SUM(K36:AS36) -> 34155073.69 | M36: =(((M31+((M32+M33+M34+M35)*$E$44)))-(M21*0.5))*$E$22 -> 0 | N36: 129890.1528 | O36: 408706.0495 | P36: 716353.1348 | Q36: 645202.9264 | R36: 582609.8299 | S36: 929830.6361 | T36: 856698.553 | U36: 791947.8286 | V36: 703778.1635 | W36: 624105.195 | X36: 1032628.291 | Y36: 939522.1293 | Z36: 855926.2284 | AA36: 1314919.952 | AB36: 1216512.614 | AC36: 1128721.109 | AD36: 1009362.788 | AE36: 900673.3406 | AF36: 1438186.267 | AG36: 1310349.431 | AH36: 1194345.247 | AI36: 1039821.721 | AJ36: 897073.6608 | AK36: 1523771.058 | AL36: 1356101.565 | AM36: 1201383.713 | AN36: 1901585.054 | AO36: 1673356.605 | AP36: 1409934.112 | AQ36: 2088277.577 | AR36: 1776551.183 | AS36: =(((AS31+((AS32+AS33+AS34+AS35)*$E$44)))-(AS21*0.5))*$E$22 -> 556947.5729
D37: etc. | E37: etc. | H37: Future value of cash inflows | I37: =SUM(I30:I36) -> 385775325.4
D38: 2058 | E38: 9069 | H38: Ending account balance | M38: =M31+M32+M33+M34+M35+M36-M21 -> 0 | N38: =N31+N32+N33+N34+N35+N36-N21 -> 6185375.133 | O38: =O31+O32+O33+O34+O35+O36-O21 -> 13277226 | P38: 20835543.68 | Q38: 9889049.756 | R38: 17854857.51 | S38: 26423720.73 | T38: 14372304.3 | U38: 23340288.22 | V38: 10173660.73 | W38: 19546257.75 | X38: 29627549.59 | Y38: 15112538 | Z38: 25646708.9 | AA38: 36969840.52 | AB38: 20960546.88 | AC38: 32789204.93 | AD38: 15276698.11 | AE38: 27613408.36 | AF38: 40873088.74 | AG38: 21525812.25 | AH38: 35348964.08 | AI38: 14167394.73 | AJ38: 28551294.82 | AK38: 44010753.99 | AL38: 20566865.75 | AM38: 36643082.66 | AN38: 53910486.24 | AO38: 25774833.31 | AP38: 41366294.84 | AQ38: 58077580.75 | AR38: 26521869.39 | AS38: 0
B41: Note: Cash flow timing is for inflows, 1=beginning of year; 0.5 is straight line; 0.0 is end of year. This is used to calculate investment income on expenditures within a given year.
B44: Cashflow timing factor | E44: 0.5
A46: End of WP

Sheet Version History
A1: Date | B1: Where | C1: Issue | D1: Correction/ Comment | E1: Status
A2: 2023-07-19 | B2: First version issued for discussion | C2: NA | D2: NA | E2: Complete
A3: 2023-11-05 | B3: Tab 5 - Forecast Data | C3: Forecast data was slightly out of date | D3: Forecast data corrected to be consistent with the data in the community services levies | E3: Complete

Sheet Tab 3 - Financial Model (2) (hidden)
A3: Escalation Rate | B3: 0.0353
A4: Discount | B4: 0.0429
B6: Current Cost | C6: Year Projected project built | F6: 1 | G6: 2 | H6: 3 | I6: 4 | J6: 5 | K6: 6 | L6: 7 | M6: 8 | N6: 9 | O6: 10 | P6: 11 | Q6: 12 | R6: 13 | S6: 14 | T6: 15 | U6: 16 | V6: 17 | W6: 18 | X6: 19 | Y6: 20 | Z6: 21 | AA6: 22 | AB6: 23 | AC6: 24 | AD6: 25 | AE6: 26 | AF6: 27 | AG6: 28 | AH6: 29 | AI6: 30 | AJ6: 31 | AK6: 32 | AL6: 33 | AM6: 34 | AN6: 35 | AO6: 36
F7: 2022 | G7: 2023 | H7: 2024 | I7: 2025 | J7: 2026 | K7: 2027 | L7: 2028 | M7: 2029 | N7: 2030 | O7: 2031 | P7: 2032 | Q7: 2033 | R7: 2034 | S7: 2035 | T7: 2036 | U7: 2037 | V7: 2038 | W7: 2039 | X7: 2040 | Y7: 2041 | Z7: 2042 | AA7: 2043 | AB7: 2044 | AC7: 2045 | AD7: 2046 | AE7: 2047 | AF7: 2048 | AG7: 2049 | AH7: 2050 | AI7: 2051 | AJ7: 2052 | AK7: 2053 | AL7: 2054 | AM7: 2055 | AN7: 2056 | AO7: 2057
A8: 1 | B8: 18000000 | C8: 4 | F8: =IF($C8=F$6,$B8,0)*(1+$B$3)^F$6 -> 0 | G8: 0 | H8: 0 | I8: =IF($C8=I$6,$B8,0)*(1+$B$3)^H$6 -> 19974280.63 | J8: =IF($C8=J$6,$B8,0)*(1+$B$3)^J$6 -> 0 | K8: 0 | L8: 0 | M8: 0 | N8: 0 | O8: 0 | P8: 0 | Q8: 0 | R8: 0 | S8: 0 | T8: 0 | U8: 0 | V8: 0 | W8: 0 | X8: 0 | Y8: 0 | Z8: 0 | AA8: 0 | AB8: 0 | AC8: 0 | AD8: 0 | AE8: 0 | AF8: 0 | AG8: 0 | AH8: 0 | AI8: 0 | AJ8: 0 | AK8: 0 | AL8: 0
A9: 2 | B9: 18000000 | C9: 5 | F9: 0 | G9: 0 | H9: 0 | I9: 0 | J9: =IF($C9=J$6,$B9,0)*(1+$B$3)^I$6 -> 20679372.73 | K9: 0 | L9: 0 | M9: 0 | N9: 0 | O9: 0 | P9: 0 | Q9: 0 | R9: 0 | S9: 0 | T9: 0 | U9: 0 | V9: 0 | W9: 0 | X9: 0 | Y9: 0 | Z9: 0 | AA9: 0 | AB9: 0 | AC9: 0 | AD9: 0 | AE9: 0 | AF9: 0 | AG9: 0 | AH9: 0 | AI9: 0 | AJ9: 0 | AK9: 0 | AL9: 0
A10: 3 | B10: 18000000 | C10: 6 | F10: 0 | G10: 0 | H10: 0 | I10: 0 | J10: 0 | K10: =IF($C10=K$6,$B10,0)*(1+$B$3)^J$6 -> 21409354.59 | L10: 0 | M10: 0 | N10: 0 | O10: 0 | P10: 0 | Q10: 0 | R10: 0 | S10: 0 | T10: 0 | U10: 0 | V10: 0 | W10: 0 | X10: 0 | Y10: 0 | Z10: 0 | AA10: 0 | AB10: 0 | AC10: 0 | AD10: 0 | AE10: 0 | AF10: 0 | AG10: 0 | AH10: 0 | AI10: 0 | AJ10: 0 | AK10: 0 | AL10: 0
A11: 4 | B11: 18000000 | C11: 10 | F11: 0 | G11: 0 | H11: 0 | I11: 0 | J11: 0 | K11: 0 | L11: 0 | M11: 0 | N11: 0 | O11: =IF($C11=O$6,$B11,0)*(1+$B$3)^N$6 -> 24596223.53 | P11: 0 | Q11: 0 | R11: 0 | S11: 0 | T11: 0 | U11: 0 | V11: 0 | W11: 0 | X11: 0 | Y11: 0 | Z11: 0 | AA11: 0 | AB11: 0 | AC11: 0 | AD11: 0 | AE11: 0 | AF11: 0 | AG11: 0 | AH11: 0 | AI11: 0 | AJ11: 0 | AK11: 0 | AL11: 0
A12: 5 | B12: 18000000 | C12: 10 | F12: 0 | G12: 0 | H12: 0 | I12: 0 | J12: 0 | K12: 0 | L12: 0 | M12: 0 | N12: 0 | O12: =IF($C12=O$6,$B12,0)*(1+$B$3)^N$6 -> 24596223.53 | P12: 0 | Q12: 0 | R12: 0 | S12: 0 | T12: 0 | U12: 0 | V12: 0 | W12: 0 | X12: 0 | Y12: 0 | Z12: 0 | AA12: 0 | AB12: 0 | AC12: 0 | AD12: 0 | AE12: 0 | AF12: 0 | AG12: 0 | AH12: 0 | AI12: 0 | AJ12: 0 | AK12: 0 | AL12: 0
A13: 6 | B13: 18000000 | C13: 15 | F13: 0 | G13: 0 | H13: 0 | I13: 0 | J13: 0 | K13: 0 | L13: 0 | M13: 0 | N13: 0 | O13: 0 | P13: 0 | Q13: 0 | R13: 0 | S13: 0 | T13: =IF($C13=T$6,$B13,0)*(1+$B$3)^S$6 -> 29254959.5 | U13: 0 | V13: 0 | W13: 0 | X13: 0 | Y13: 0 | Z13: 0 | AA13: 0 | AB13: 0 | AC13: 0 | AD13: 0 | AE13: 0 | AF13: 0 | AG13: 0 | AH13: 0 | AI13: 0 | AJ13: 0 | AK13: 0 | AL13: 0
A14: 7 | B14: 18000000 | C14: 15 | F14: 0 | G14: 0 | H14: 0 | I14: 0 | J14: 0 | K14: 0 | L14: 0 | M14: 0 | N14: 0 | O14: 0 | P14: 0 | Q14: 0 | R14: 0 | S14: 0 | T14: =IF($C14=T$6,$B14,0)*(1+$B$3)^S$6 -> 29254959.5 | U14: 0 | V14: 0 | W14: 0 | X14: 0 | Y14: 0 | Z14: 0 | AA14: 0 | AB14: 0 | AC14: 0 | AD14: 0 | AE14: 0 | AF14: 0 | AG14: 0 | AH14: 0 | AI14: 0 | AJ14: 0 | AK14: 0 | AL14: 0
A15: 8 | B15: 18000000 | C15: 18 | F15: 0 | G15: 0 | H15: 0 | I15: 0 | J15: 0 | K15: 0 | L15: 0 | M15: 0 | N15: 0 | O15: 0 | P15: 0 | Q15: 0 | R15: 0 | S15: 0 | T15: 0 | U15: 0 | V15: 0 | W15: =IF($C15=W$6,$B15,0)*(1+$B$3)^V$6 -> 32463709.49 | X15: 0 | Y15: 0 | Z15: 0 | AA15: 0 | AB15: 0 | AC15: 0 | AD15: 0 | AE15: 0 | AF15: 0 | AG15: 0 | AH15: 0 | AI15: 0 | AJ15: 0 | AK15: 0 | AL15: 0
A16: 9 | B16: 18000000 | C16: 18 | F16: 0 | G16: 0 | H16: 0 | I16: 0 | J16: 0 | K16: 0 | L16: 0 | M16: 0 | N16: 0 | O16: 0 | P16: 0 | Q16: 0 | R16: 0 | S16: 0 | T16: 0 | U16: 0 | V16: 0 | W16: =IF($C16=W$6,$B16,0)*(1+$B$3)^V$6 -> 32463709.49 | X16: 0 | Y16: 0 | Z16: 0 | AA16: 0 | AB16: 0 | AC16: 0 | AD16: 0 | AE16: 0 | AF16: 0 | AG16: 0 | AH16: 0 | AI16: 0 | AJ16: 0 | AK16: 0 | AL16: 0
A17: 10 | B17: 18000000 | C17: 20 | F17: 0 | G17: 0 | H17: 0 | I17: 0 | J17: 0 | K17: 0 | L17: 0 | M17: 0 | N17: 0 | O17: 0 | P17: 0 | Q17: 0 | R17: 0 | S17: 0 | T17: 0 | U17: 0 | V17: 0 | W17: =IF($C17=W$6,$B17,0)*(1+$B$3)^W$6 -> 0 | X17: =IF($C17=X$6,$B17,0)*(1+$B$3)^X$6 -> 0 | Y17: =IF($C17=Y$6,$B17,0)*(1+$B$3)^X$6 -> 34796100.08 | Z17: 0 | AA17: 0 | AB17: 0 | AC17: 0 | AD17: 0 | AE17: 0 | AF17: 0 | AG17: 0 | AH17: 0 | AI17: 0 | AJ17: 0 | AK17: 0 | AL17: 0
A18: Future value of capital projects | C18: =SUM(E18:AL18) -> 269488893.1 | F18: =SUM(F8:F17) -> 0 | G18: 0 | H18: 0 | I18: 19974280.63 | J18: 20679372.73 | K18: 21409354.59 | L18: 0 | M18: 0 | N18: 0 | O18: 49192447.05 | P18: 0 | Q18: 0 | R18: 0 | S18: 0 | T18: 58509919.01 | U18: 0 | V18: 0 | W18: 64927418.98 | X18: 0 | Y18: 34796100.08 | Z18: 0 | AA18: 0 | AB18: 0 | AC18: 0 | AD18: 0 | AE18: 0 | AF18: 0 | AG18: 0 | AH18: 0 | AI18: 0 | AJ18: 0 | AK18: 0 | AL18: 0
A19: Dicounted Amount | C19: =SUM(F19:AL19) -> 159269567.1 | F19: =(SUM(F8:F17))/((1+$B$4)^F6) -> 0 | G19: 0 | H19: 0 | I19: 16884977.15 | J19: 16761930.05 | K19: 16639779.63 | L19: 0 | M19: 0 | N19: 0 | O19: 32320029.78 | P19: 0 | Q19: 0 | R19: 0 | S19: 0 | T19: 31159428.6 | U19: 0 | V19: 0 | W19: 30483169.76 | X19: 0 | Y19: 15020252.11 | Z19: 0 | AA19: 0 | AB19: 0 | AC19: 0 | AD19: 0 | AE19: 0 | AF19: 0 | AG19: 0 | AH19: 0 | AI19: 0 | AJ19: 0 | AK19: 0 | AL19: 0
C20: =SUM(G20:AL20) -> 10202.8 | F20: 361 | G20: 290 | H20: 309 | I20: 327 | J20: 321 | K20: 321 | L20: 321.5 | M20: 321.5 | N20: 321.5 | O20: 321.5 | P20: 321.5 | Q20: 321.5 | R20: 321.5 | S20: 321.5 | T20: 321.5 | U20: 321.5 | V20: 321.5 | W20: 321.5 | X20: 321.5 | Y20: 321.5 | Z20: 321.5 | AA20: 321.5 | AB20: 321.5 | AC20: 321.5 | AD20: 321.5 | AE20: 321.5 | AF20: 321.5 | AG20: 321.5 | AH20: 321.5 | AI20: 321.5 | AJ20: 321.5 | AK20: 321.5 | AL20: =321.5-45.7 -> 275.8
C21: =C19/C20 -> 15610.37824 | D21: Contribution | E21: =SUM(I21:AO21) -> 381399104.2 | I21: =($C$25*F20)*(1+$B$4)^0 -> 6173732.862 | J21: =($C$25*G20)*(1+$B$4)^F6 -> 5172271.303 | K21: 5747572.339 | L21: 6343316.582 | M21: 6494060.554 | N21: 6772655.752 | O21: 7074204.557 | P21: 7377687.933 | Q21: 7694190.745 | R21: 8024271.528 | S21: 8368512.776 | T21: 8727521.975 | U21: 9101932.667 | V21: 9492405.579 | W21: 9899629.778 | X21: 10324323.9 | Y21: 10767237.39 | Z21: 11229151.87 | AA21: 11710882.49 | AB21: 12213279.35 | AC21: 12737229.03 | AD21: 13283656.16 | AE21: 13853525.01 | AF21: 14447841.23 | AG21: 15067653.62 | AH21: 15714055.96 | AI21: 16388188.96 | AJ21: 17091242.27 | AK21: 17824456.56 | AL21: 18589125.75 | AM21: 19386599.24 | AN21: 20218284.35 | AO21: 18088404.12
D22: Income | E22: =SUM(I22:AO22) -> -111910211.1 | I22: =(D25+I21)*$B$4 -> 264853.1398 | J22: =(I25+J21)*$B$4 -> -358790.8605 | K22: -1014757.225 | L22: -1704623.341 | M22: -1499156.484 | N22: -1272923.366 | O22: -1024048.403 | P22: -2861833.245 | Q22: -2654525.109 | R22: -2424162.987 | S22: -2169150.381 | T22: -1887796.24 | U22: -4088385.312 | V22: -3856552.843 | W22: -3597304.843 | X22: -6094101.999 | Y22: -5893624.491 | Z22: -7157483.06 | AA22: -6962142.224 | AB22: -6736868.442 | AC22: -6479452.972 | AD22: -6187552.656 | AE22: -5858682.442 | AF22: -5490207.53 | AG22: -5079335.092 | AH22: -4623105.567 | AI22: -4118383.49 | AJ22: -3561847.848 | AK22: -2949981.934 | AL22: -2279062.665 | AM22: -1545149.346 | AN22: -744071.8542 | AO22: -5.433708429e-09
B25: RATE | C25: 17101.75308 | I25: =+H25+I21+I22-I18 -> -13535694.62 | J25: =+I25+J21+J22-J18 -> -29401586.91 | K25: =+J25+K21+K22-K18 -> -46078126.39 | L25: -41439433.15 | M25: -36444529.08 | N25: -30944796.69 | O25: =+N25+O21+O22-O18 -> -74087087.59 | P25: -69571232.9 | Q25: -64531567.27 | R25: -58931458.73 | S25: -52732096.33 | T25: =+S25+T21+T22-T18 -> -104402289.6 | U25: -99388742.25 | V25: -93752889.51 | W25: -152377983.6 | X25: -148147761.7 | Y25: -178070248.8 | Z25: -173998580 | AA25: -169249839.8 | AB25: -163773428.9 | AC25: -157515652.8 | AD25: -150419549.3 | AE25: -142424706.7 | AF25: -133467073 | AG25: -123478754.5 | AH25: -112387804.1 | AI25: -100117998.6 | AJ25: -86588604.21 | AK25: -71714129.59 | AL25: -55404066.51 | AM25: -37562616.61 | AN25: -18088404.12 | AO25: =+AN25+AO21+AO22-AO18 -> -1.320935786e-07
